Department Family,Entity,Date Paid,Expense Type,Expense Area,Supplier,Transaction Number,Amount (�),Supplier VAT Registration Number
BEIS,Met Office,2022-11-01,06 ACCOMMODATION,CHIEF FINANCIAL OFFICER,BIDVEST NOONAN UK LTD,472976,1013.83,GB847176988
BEIS,Met Office,2022-11-01,11 SERVICES,TECHNOLOGY AND CIO,NORBECK LTD,472872,619.08,543334559
BEIS,Met Office,2022-11-01,11 SERVICES,CHIEF FINANCIAL OFFICER,POSTURITE (UK) LTD,472971,60.77,583565114
BEIS,Met Office,2022-11-01,03 STAFF COSTS T&S,CHIEF FINANCIAL OFFICER,RAINBOW CITY TAXIS,473018,92.74,724295039
BEIS,Met Office,2022-11-01,11 SERVICES,PROGRAMMES,ROBIN�S TRADING COMPANY LTD,472982,12000,384909158
BEIS,Met Office,2022-11-01,11 SERVICES,PROGRAMMES,SPOCE,467554,4875,619 8641 07
BEIS,Met Office,2022-11-01,11 SERVICES,PROGRAMMES,SPOCE,467554,1245,619 8641 07
BEIS,Met Office,2022-11-01,11 SERVICES,PROGRAMMES,SPOCE,467554,3090,619 8641 07
BEIS,Met Office,2022-11-01,11 SERVICES,PROGRAMMES,SPOCE,467554,90,619 8641 07
BEIS,Met Office,2022-11-01,11 SERVICES,MARKETS,UK CENTRE FOR ECOLOGY & HYDROLOGY (UKCEH),473021,30000,336940192
BEIS,Met Office,2022-11-01,13 MISCELLANEOUS,SCIENCE,University Of Exeter,472959,1000,142047795
BEIS,Met Office,2022-11-01,13 MISCELLANEOUS,SCIENCE,University Of Leeds,472830,1000,613451470
BEIS,Met Office,2022-11-01,13 MISCELLANEOUS,SCIENCE,University Of Oxford,472963,1000,125506730
BEIS,Met Office,2022-11-01,13 MISCELLANEOUS,SCIENCE,University Of Reading,472962,1000,200012659
BEIS,Met Office,2022-11-01,11 SERVICES,PROGRAMMES,WARWICK ECONOMICS & DEVELOPMENT LTD.,473028,2950,116732721
BEIS,Met Office,2022-11-02,11 SERVICES,MARKETS,ADOPSTAR,473099,1250,115036848
BEIS,Met Office,2022-11-02,03 STAFF COSTS T&S,CHIEF FINANCIAL OFFICER,ALLSTAR BUSINESS SOLUTIONS LTD,473051,3641.1,747880191
BEIS,Met Office,2022-11-02,11 SERVICES,TECHNOLOGY AND CIO,AMAZON WEB SERVICES INC.,10811,894.56,N/A
BEIS,Met Office,2022-11-02,11 SERVICES,TECHNOLOGY AND CIO,AMAZON WEB SERVICES INC.,10812,53490.87,N/A
BEIS,Met Office,2022-11-02,11 SERVICES,TECHNOLOGY AND CIO,AMAZON WEB SERVICES INC.,10812,200457.53,N/A
BEIS,Met Office,2022-11-02,06 ACCOMMODATION,CHIEF FINANCIAL OFFICER,BIDVEST NOONAN UK LTD,473082,115.71,GB847176988
BEIS,Met Office,2022-11-02,11 SERVICES,SERVICES,Boc Ltd,473087,17195.2,226556555
BEIS,Met Office,2022-11-02,11 SERVICES,CHIEF FINANCIAL OFFICER,BT CONFERENCING,472990,35.16,245719348
BEIS,Met Office,2022-11-02,11 SERVICES,CHIEF FINANCIAL OFFICER,BT plc,472989,8445.21,245719348
BEIS,Met Office,2022-11-02,FIXTURE & FITTINGS,CHIEF FINANCIAL OFFICER,CBRE MANAGED SERVICES LTD,471825,17770.25,853936883
BEIS,Met Office,2022-11-02,06 ACCOMMODATION,CHIEF FINANCIAL OFFICER,CBRE MANAGED SERVICES LTD,472983,13956.52,853936883
BEIS,Met Office,2022-11-02,10 EQUIPMENT MAINTENANCE,SERVICES,CIMEL ELECTRONIQUE,24259,411.35,FR89662017201
BEIS,Met Office,2022-11-02,07 EQUIPMENT,TECHNOLOGY AND CIO,COMPUTACENTER (UK) LTD,473033,6417.9,490334648
BEIS,Met Office,2022-11-02,11 SERVICES,MARKETS,DELTARES,24249,22938.66,NL800097476B01
BEIS,Met Office,2022-11-02,11 SERVICES,MARKETS,DELTARES,24260,26886.56,NL800097476B01
BEIS,Met Office,2022-11-02,11 SERVICES,MARKETS,DELTARES,24261,-22553.98,NL800097476B01
BEIS,Met Office,2022-11-02,10 EQUIPMENT MAINTENANCE,SERVICES,DEUTSCHE WINDGUARD WIND TUNNEL SERVICES GMBH,24320,3247.91,DE225152482
BEIS,Met Office,2022-11-02,10 EQUIPMENT MAINTENANCE,SERVICES,DEUTSCHE WINDGUARD WIND TUNNEL SERVICES GMBH,24320,42.96,DE225152482
BEIS,Met Office,2022-11-02,10 EQUIPMENT MAINTENANCE,SERVICES,DEUTSCHE WINDGUARD WIND TUNNEL SERVICES GMBH,24320,17.18,DE225152482
BEIS,Met Office,2022-11-02,10 EQUIPMENT MAINTENANCE,SERVICES,DEUTSCHE WINDGUARD WIND TUNNEL SERVICES GMBH,24320,10.74,DE225152482
BEIS,Met Office,2022-11-02,13 MISCELLANEOUS,CHIEF FINANCIAL OFFICER,DWYFOR COFFEE COMPANY LTD,471983,-39.7,559811116
BEIS,Met Office,2022-11-02,13 MISCELLANEOUS,CHIEF FINANCIAL OFFICER,DWYFOR COFFEE COMPANY LTD,471987,21.03,559811116
BEIS,Met Office,2022-11-02,13 MISCELLANEOUS,CHIEF FINANCIAL OFFICER,DWYFOR COFFEE COMPANY LTD,473118,48.9,559811116
BEIS,Met Office,2022-11-02,13 MISCELLANEOUS,CHIEF FINANCIAL OFFICER,EAST ANGLIAN WATER COOLER CO,473036,27.9,676668178
BEIS,Met Office,2022-11-02,11 SERVICES,MARKETS,ECMWF,24190,2199.45,NOTVATREG
BEIS,Met Office,2022-11-02,11 SERVICES,MARKETS,ECMWF,24191,4252.39,NOTVATREG
BEIS,Met Office,2022-11-02,11 SERVICES,MARKETS,ECMWF,24192,152.4,NOTVATREG
BEIS,Met Office,2022-11-02,11 SERVICES,MARKETS,ECMWF,24193,9039.72,NOTVATREG
BEIS,Met Office,2022-11-02,11 SERVICES,MARKETS,ECMWF,24194,1489.33,NOTVATREG
BEIS,Met Office,2022-11-02,11 SERVICES,MARKETS,ECMWF,24195,2354.07,NOTVATREG
BEIS,Met Office,2022-11-02,11 SERVICES,MARKETS,ECMWF,24196,29252.65,NOTVATREG
BEIS,Met Office,2022-11-02,11 SERVICES,MARKETS,ECMWF,24197,30924.23,NOTVATREG
BEIS,Met Office,2022-11-02,11 SERVICES,MARKETS,ECMWF,24198,12756.8,NOTVATREG
BEIS,Met Office,2022-11-02,11 SERVICES,MARKETS,ECMWF,24199,261.93,NOTVATREG
BEIS,Met Office,2022-11-02,11 SERVICES,MARKETS,ECMWF,24200,250.84,NOTVATREG
BEIS,Met Office,2022-11-02,11 SERVICES,MARKETS,ECMWF,24201,547.08,NOTVATREG
BEIS,Met Office,2022-11-02,11 SERVICES,MARKETS,ECMWF,24202,20840.25,NOTVATREG
BEIS,Met Office,2022-11-02,11 SERVICES,MARKETS,ECMWF,24203,3959.01,NOTVATREG
BEIS,Met Office,2022-11-02,11 SERVICES,MARKETS,ECMWF,24204,30924.23,NOTVATREG
BEIS,Met Office,2022-11-02,11 SERVICES,MARKETS,ECMWF,24205,3079.23,NOTVATREG
BEIS,Met Office,2022-11-02,11 SERVICES,MARKETS,ECMWF,24206,555.78,NOTVATREG
BEIS,Met Office,2022-11-02,11 SERVICES,MARKETS,ECMWF,24207,1319.67,NOTVATREG
BEIS,Met Office,2022-11-02,11 SERVICES,MARKETS,ECMWF,24208,30924.23,NOTVATREG
BEIS,Met Office,2022-11-02,11 SERVICES,MARKETS,ECMWF,24209,5601.68,NOTVATREG
BEIS,Met Office,2022-11-02,11 SERVICES,MARKETS,ECMWF,24210,30924.23,NOTVATREG
BEIS,Met Office,2022-11-02,11 SERVICES,MARKETS,ECMWF,24211,5099.93,NOTVATREG
BEIS,Met Office,2022-11-02,11 SERVICES,MARKETS,ECMWF,24212,21136.7,NOTVATREG
BEIS,Met Office,2022-11-02,11 SERVICES,MARKETS,ECMWF,24213,1319.67,NOTVATREG
BEIS,Met Office,2022-11-02,11 SERVICES,MARKETS,ECMWF,24214,391.47,NOTVATREG
BEIS,Met Office,2022-11-02,11 SERVICES,MARKETS,ECMWF,24215,1119.6,NOTVATREG
BEIS,Met Office,2022-11-02,11 SERVICES,MARKETS,ECMWF,24216,30924.23,NOTVATREG
BEIS,Met Office,2022-11-02,11 SERVICES,MARKETS,ECMWF,24217,30924.23,NOTVATREG
BEIS,Met Office,2022-11-02,11 SERVICES,MARKETS,ECMWF,24218,1885.16,NOTVATREG
BEIS,Met Office,2022-11-02,11 SERVICES,MARKETS,ECMWF,24219,11359.55,NOTVATREG
BEIS,Met Office,2022-11-02,11 SERVICES,MARKETS,ECMWF,24220,709.3,NOTVATREG
BEIS,Met Office,2022-11-02,11 SERVICES,MARKETS,ECMWF,24222,20840.25,NOTVATREG
BEIS,Met Office,2022-11-02,11 SERVICES,MARKETS,ECMWF,24223,1759.56,NOTVATREG
BEIS,Met Office,2022-11-02,11 SERVICES,MARKETS,ECMWF,24224,7478.12,NOTVATREG
BEIS,Met Office,2022-11-02,11 SERVICES,MARKETS,ECMWF,24229,8797.79,NOTVATREG
BEIS,Met Office,2022-11-02,11 SERVICES,MARKETS,ECMWF,24232,2317.35,NOTVATREG
BEIS,Met Office,2022-11-02,11 SERVICES,MARKETS,ECMWF,24235,1532.97,NOTVATREG
BEIS,Met Office,2022-11-02,11 SERVICES,MARKETS,ECMWF,24238,5712.11,NOTVATREG
BEIS,Met Office,2022-11-02,03 STAFF COSTS T&S,CHIEF FINANCIAL OFFICER,ENTERPRISE RENT A CAR UK LTD,473080,2168.08,215557314
BEIS,Met Office,2022-11-02,07 EQUIPMENT,SERVICES,EURO-ARGO ERIC,24221,183643.64,723/2009
BEIS,Met Office,2022-11-02,FIXTURE & FITTINGS,CHIEF FINANCIAL OFFICER,FMS INTERIOR SERVICES LTD,472937,990,922056940
BEIS,Met Office,2022-11-02,FIXTURE & FITTINGS,CHIEF FINANCIAL OFFICER,FMS INTERIOR SERVICES LTD,472937,29.25,922056940
BEIS,Met Office,2022-11-02,FIXTURE & FITTINGS,CHIEF FINANCIAL OFFICER,FMS INTERIOR SERVICES LTD,472937,120,922056940
BEIS,Met Office,2022-11-02,FIXTURE & FITTINGS,CHIEF FINANCIAL OFFICER,FMS INTERIOR SERVICES LTD,472937,125,922056940
BEIS,Met Office,2022-11-02,FIXTURE & FITTINGS,CHIEF FINANCIAL OFFICER,FMS INTERIOR SERVICES LTD,472937,101.02,922056940
BEIS,Met Office,2022-11-02,FIXTURE & FITTINGS,CHIEF FINANCIAL OFFICER,FMS INTERIOR SERVICES LTD,472937,65.55,922056940
BEIS,Met Office,2022-11-02,FIXTURE & FITTINGS,CHIEF FINANCIAL OFFICER,FMS INTERIOR SERVICES LTD,472937,3721.5,922056940
BEIS,Met Office,2022-11-02,08 SOFTWARE LICENCES,TECHNOLOGY AND CIO,Ibm United Kingdom Ltd,473116,7017.1,107328000
BEIS,Met Office,2022-11-02,11 SERVICES,MARKETS,"INTELLOVATIONS, LLC",10834,1861.37,-
BEIS,Met Office,2022-11-02,11 SERVICES,PROGRAMMES,"K F LEWIN CONSULTING, LLC",10821,2982.05,-
BEIS,Met Office,2022-11-02,11 SERVICES,CHIEF FINANCIAL OFFICER,LEASEDRIVE RENTAL MANAGEMENT LTD,473022,1210.13,733546040
BEIS,Met Office,2022-11-02,11 SERVICES,SERVICES,LEX AUTOLEASE LTD,431242,-4359.3,244155576
BEIS,Met Office,2022-11-02,11 SERVICES,SERVICES,LEX AUTOLEASE LTD,431317,-80.82,244155576
BEIS,Met Office,2022-11-02,11 SERVICES,CHIEF FINANCIAL OFFICER,LEX AUTOLEASE LTD,472988,5065.08,244155576
BEIS,Met Office,2022-11-02,11 SERVICES,SERVICES,LIMINAL SPACE ASSOCIATES LTD,472856,5000,138365106
BEIS,Met Office,2022-11-02,11 SERVICES,SERVICES,MADE TECH,473025,1410,938565184
BEIS,Met Office,2022-11-02,07 EQUIPMENT,SERVICES,METOCEAN TELEMATICS LTD,10822,208.42,-
BEIS,Met Office,2022-11-02,06 ACCOMMODATION,CHIEF FINANCIAL OFFICER,MORAY COUNCIL,472526,85,663755506
BEIS,Met Office,2022-11-02,11 SERVICES,SCIENCE,NIWA,471190,70000,GST059456466
BEIS,Met Office,2022-11-02,13 MISCELLANEOUS,CHIEF FINANCIAL OFFICER,NORSCOTT VENDING SERVICES LTD,473027,85,751402071
BEIS,Met Office,2022-11-02,11 SERVICES,PROGRAMMES,NORWEGIAN REFUGEE COUNCIL,472034,28642.65,-
BEIS,Met Office,2022-11-02,06 ACCOMMODATION,CHIEF FINANCIAL OFFICER,OUR LADY OF BETHLEHEM ABBEY,473126,500,-
BEIS,Met Office,2022-11-02,08 SOFTWARE LICENCES,TECHNOLOGY AND CIO,PRESENTATION CARTOGRAPHY LTD,473029,7091.76,-
BEIS,Met Office,2022-11-02,08 SOFTWARE LICENCES,TECHNOLOGY AND CIO,PRESENTATION CARTOGRAPHY LTD,473029,39254,-
BEIS,Met Office,2022-11-02,08 SOFTWARE LICENCES,TECHNOLOGY AND CIO,PRESENTATION CARTOGRAPHY LTD,473029,7231,-
BEIS,Met Office,2022-11-02,08 SOFTWARE LICENCES,TECHNOLOGY AND CIO,PRESENTATION CARTOGRAPHY LTD,473030,8353.28,-
BEIS,Met Office,2022-11-02,08 SOFTWARE LICENCES,TECHNOLOGY AND CIO,PRESENTATION CARTOGRAPHY LTD,473030,1937,-
BEIS,Met Office,2022-11-02,06 ACCOMMODATION,CHIEF FINANCIAL OFFICER,REDACTED PERSONAL DATA,473122,696.65,-
BEIS,Met Office,2022-11-02,06 ACCOMMODATION,CHIEF FINANCIAL OFFICER,REDACTED PERSONAL DATA,473123,672.22,-
BEIS,Met Office,2022-11-02,06 ACCOMMODATION,CHIEF FINANCIAL OFFICER,REDACTED PERSONAL DATA,473124,100,-
BEIS,Met Office,2022-11-02,06 ACCOMMODATION,CHIEF FINANCIAL OFFICER,Scottish Government,473055,21783,888842551
BEIS,Met Office,2022-11-02,06 ACCOMMODATION,CHIEF FINANCIAL OFFICER,Severn Trent Water Ltd,473090,218.88,486985565
BEIS,Met Office,2022-11-02,06 ACCOMMODATION,CHIEF FINANCIAL OFFICER,Severn Trent Water Ltd,473091,214.01,486985565
BEIS,Met Office,2022-11-02,11 SERVICES,PEOPLE,SOURCE COACHING CONSULTANCY,473092,1775,170422048
BEIS,Met Office,2022-11-02,06 ACCOMMODATION,CHIEF FINANCIAL OFFICER,Southern Education & Library Board,473125,50,-
BEIS,Met Office,2022-11-02,11 SERVICES,TECHNOLOGY AND CIO,SSE CONTRACTING LTD,473045,10912.87,382894546
BEIS,Met Office,2022-11-02,11 SERVICES,CHIEF FINANCIAL OFFICER,TELEFONICA O2 UK LIMITED,473062,50.9,778603785
BEIS,Met Office,2022-11-02,11 SERVICES,CHIEF FINANCIAL OFFICER,TENDER VICTORY,473032,4500,245 1698 90
BEIS,Met Office,2022-11-02,06 ACCOMMODATION,CHIEF FINANCIAL OFFICER,TENNIE FACILITIES PROPERTY MANAGEMENT LTD,473100,165.72,982055803
BEIS,Met Office,2022-11-02,11 SERVICES,CHIEF FINANCIAL OFFICER,UK CONNECT LTD,473053,3760,154468983
BEIS,Met Office,2022-11-02,13 MISCELLANEOUS,SCIENCE,University Of Exeter,472873,1000,142047795
BEIS,Met Office,2022-11-02,11 SERVICES,SCIENCE,University Of Exeter,472936,7500,142047795
BEIS,Met Office,2022-11-02,11 SERVICES,PROGRAMMES,University Of Exeter,473023,58372.18,142047795
BEIS,Met Office,2022-11-02,13 MISCELLANEOUS,SCIENCE,University Of Leeds,472837,1000,613451470
BEIS,Met Office,2022-11-02,11 SERVICES,PROGRAMMES,University Of Leeds,472875,237309.66,613451470
BEIS,Met Office,2022-11-02,06 ACCOMMODATION,CHIEF FINANCIAL OFFICER,V & M MORRIS AND SON,473120,804.9,-
BEIS,Met Office,2022-11-02,11 SERVICES,CHIEF FINANCIAL OFFICER,Vodafone Limited,473083,4362.86,569953277
BEIS,Met Office,2022-11-02,11 SERVICES,CHIEF FINANCIAL OFFICER,Vodafone Limited,473084,480.3,569953277
BEIS,Met Office,2022-11-02,11 SERVICES,CHIEF FINANCIAL OFFICER,Vodafone Limited,473085,34474.46,569953277
BEIS,Met Office,2022-11-02,11 SERVICES,CHIEF FINANCIAL OFFICER,Vodafone Ltd,473039,373.48,569953277
BEIS,Met Office,2022-11-02,11 SERVICES,CHIEF FINANCIAL OFFICER,Vodafone Ltd,473040,383.1,569953277
BEIS,Met Office,2022-11-02,11 SERVICES,CHIEF FINANCIAL OFFICER,Vodafone Ltd,473041,376.26,569953277
BEIS,Met Office,2022-11-02,11 SERVICES,CHIEF FINANCIAL OFFICER,Vodafone Ltd,473042,368.1,569953277
BEIS,Met Office,2022-11-02,11 SERVICES,CHIEF FINANCIAL OFFICER,Vodafone Ltd,473043,368,569953277
BEIS,Met Office,2022-11-02,11 SERVICES,CHIEF FINANCIAL OFFICER,Vodafone Ltd,473044,377.86,569953277
BEIS,Met Office,2022-11-03,SOFTWARE LICENCES,CHIEF FINANCIAL OFFICER,ADVANCED BUSINESS SOLUTIONS LTD,472968,2550,927547983
BEIS,Met Office,2022-11-03,07 EQUIPMENT,SERVICES,AJ ENGINEERING AND CONSTRUCTION SERVICES LTD,472929,794,723868410
BEIS,Met Office,2022-11-03,06 ACCOMMODATION,CHIEF FINANCIAL OFFICER,BIDVEST NOONAN UK LTD,472977,457.31,GB847176988
BEIS,Met Office,2022-11-03,08 SOFTWARE LICENCES,PEOPLE,CATALYST IT,473106,1950.83,978169262
BEIS,Met Office,2022-11-03,11 SERVICES,PEOPLE,CIVICA UK LIMITED,472978,1507.68,391171065
BEIS,Met Office,2022-11-03,11 SERVICES,MARKETS,DJS RESEARCH LIMITED,472961,13800,775718779
BEIS,Met Office,2022-11-03,08 SOFTWARE LICENCES,SERVICES,ELASTICSEARCH LTD,473117,9296.02,155790484
BEIS,Met Office,2022-11-03,12 INTERNATIONAL,MARKETS,FOXSTONES TRAINING AND LEARNING,473206,2950,-
BEIS,Met Office,2022-11-03,11 SERVICES,CHIEF FINANCIAL OFFICER,INFOGRID,473024,9890,293809562
BEIS,Met Office,2022-11-03,11 SERVICES,CHIEF FINANCIAL OFFICER,LICENCE BUREAU LTD,473229,59.85,820219467
BEIS,Met Office,2022-11-03,06 ACCOMMODATION,CHIEF FINANCIAL OFFICER,MITIE SECURITY LTD,473114,1226.25,416706654
BEIS,Met Office,2022-11-03,11 SERVICES,CHIEF FINANCIAL OFFICER,MITIE SECURITY LTD,473115,1369.59,416706654
BEIS,Met Office,2022-11-03,11 SERVICES,SCIENCE,Plymouth Marine Laboratory,473017,15750,927105830
BEIS,Met Office,2022-11-03,03 STAFF COSTS T&S,CHIEF FINANCIAL OFFICER,SADDLES & PADDLES EXETER LTD,472953,2809.14,152264528
BEIS,Met Office,2022-11-03,03 STAFF COSTS T&S,CHIEF FINANCIAL OFFICER,SADDLES & PADDLES EXETER LTD,473097,-2809.14,152264528
BEIS,Met Office,2022-11-03,13 MISCELLANEOUS,CHIEF FINANCIAL OFFICER,SADDLES & PADDLES EXETER LTD,473098,2348.45,152264528
BEIS,Met Office,2022-11-03,11 SERVICES,PEOPLE,THE MYERS BRIGGS COMPANY LTD,473054,372.5,490808231
BEIS,Met Office,2022-11-03,08 SOFTWARE LICENCES,PEOPLE,TOWERS WATSON LIMITED,473031,4918,334128970
BEIS,Met Office,2022-11-03,11 SERVICES,TECHNOLOGY AND CIO,TSG TRAINING LTD,473093,839,GB 279 0047 91
BEIS,Met Office,2022-11-03,11 SERVICES,PROGRAMMES,UK ATOMIC ENERGY AUTHORITY,473047,15000,GB570101391
BEIS,Met Office,2022-11-03,11 SERVICES,PROGRAMMES,UK ATOMIC ENERGY AUTHORITY,473048,22500,GB570101391
BEIS,Met Office,2022-11-03,11 SERVICES,PROGRAMMES,UK ATOMIC ENERGY AUTHORITY,473049,46875,GB570101391
BEIS,Met Office,2022-11-03,11 SERVICES,MARKETS,ULTRA ELECTRONICS LTD NUCLEAR CONTROL SYSTEMS,471598,57163,123340754
BEIS,Met Office,2022-11-03,11 SERVICES,MARKETS,ULTRA ELECTRONICS LTD NUCLEAR CONTROL SYSTEMS,473086,4926.81,123340754
BEIS,Met Office,2022-11-03,11 SERVICES,TECHNOLOGY AND CIO,WIREFAST LTD,473103,1968.97,749536001
BEIS,Met Office,2022-11-03,11 SERVICES,TECHNOLOGY AND CIO,WIREFAST LTD,473104,1104.01,749536001
BEIS,Met Office,2022-11-03,11 SERVICES,TECHNOLOGY AND CIO,WIREFAST LTD,473105,351.72,749536001
BEIS,Met Office,2022-11-04,SOFTWARE LICENCES,CHIEF FINANCIAL OFFICER,ADVANCED BUSINESS SOLUTIONS LTD,473095,637.5,927547983
BEIS,Met Office,2022-11-04,11 SERVICES,PEOPLE,BEAMANS LTD,473035,1750,656875579
BEIS,Met Office,2022-11-04,11 SERVICES,MARKETS,CACI LTD,473227,15906.51,380609841
BEIS,Met Office,2022-11-04,03 STAFF COSTS T&S,SERVICES,CHARLIE'S TRAVEL LTD,473063,156.15,783848277
BEIS,Met Office,2022-11-04,03 STAFF COSTS T&S,SERVICES,CHARLIE'S TRAVEL LTD,473063,353.35,783848277
BEIS,Met Office,2022-11-04,03 STAFF COSTS T&S,SERVICES,CHARLIE'S TRAVEL LTD,473063,528.37,783848277
BEIS,Met Office,2022-11-04,11 SERVICES,MARKETS,Esri (Uk) Ltd,473202,14890.33,787430791
BEIS,Met Office,2022-11-04,11 SERVICES,TECHNOLOGY AND CIO,QA LTD,473019,30000,864455303
BEIS,Met Office,2022-11-04,11 SERVICES,TECHNOLOGY AND CIO,QA LTD,473020,48000,864455303
BEIS,Met Office,2022-11-04,11 SERVICES,SCIENCE,SCIENCE & TECHNOLOGY FACILITIES COUNCIL,473034,375,287461957
BEIS,Met Office,2022-11-04,07 EQUIPMENT,SERVICES,UKPOWERTECH,473081,12.5,GB756124336
BEIS,Met Office,2022-11-04,07 EQUIPMENT,SERVICES,UKPOWERTECH,473081,5080,GB756124336
BEIS,Met Office,2022-11-04,05 CONSULTANTS,CHIEF FINANCIAL OFFICER,WT CONSULTANCY (SW) LTD,473079,7700,223 4662 25
BEIS,Met Office,2022-11-04,11 SERVICES,TECHNOLOGY AND CIO,WT CONSULTANCY (SW) LTD,473096,1050,223 4662 25
BEIS,Met Office,2022-11-07,11 SERVICES,CHIEF FINANCIAL OFFICER,Ashfords Llp,473324,1945,844502439
BEIS,Met Office,2022-11-07,11 SERVICES,CHIEF FINANCIAL OFFICER,Ashfords Llp,473324,750,844502439
BEIS,Met Office,2022-11-07,11 SERVICES,CHIEF FINANCIAL OFFICER,BABBLE CLOUD LIMITED,473127,1117.73,GB206270049
BEIS,Met Office,2022-11-07,11 SERVICES,PROGRAMMES,BAE SYSTEMS APPLIED INTELLIGENCE LIMITED,473309,10549.5,GB641407169
BEIS,Met Office,2022-11-07,11 SERVICES,PROGRAMMES,BAE SYSTEMS APPLIED INTELLIGENCE LIMITED,473310,7200,GB641407169
BEIS,Met Office,2022-11-07,11 SERVICES,PROGRAMMES,BAE SYSTEMS APPLIED INTELLIGENCE LIMITED,473311,9240,GB641407169
BEIS,Met Office,2022-11-07,11 SERVICES,PROGRAMMES,BAE SYSTEMS APPLIED INTELLIGENCE LIMITED,473312,23260,GB641407169
BEIS,Met Office,2022-11-07,11 SERVICES,PROGRAMMES,BAE SYSTEMS APPLIED INTELLIGENCE LIMITED,473312,15008,GB641407169
BEIS,Met Office,2022-11-07,11 SERVICES,PROGRAMMES,BAE SYSTEMS APPLIED INTELLIGENCE LIMITED,473312,13374.5,GB641407169
BEIS,Met Office,2022-11-07,11 SERVICES,PROGRAMMES,BAE SYSTEMS APPLIED INTELLIGENCE LIMITED,473312,18760,GB641407169
BEIS,Met Office,2022-11-07,11 SERVICES,PROGRAMMES,BAE SYSTEMS APPLIED INTELLIGENCE LIMITED,473312,23260,GB641407169
BEIS,Met Office,2022-11-07,11 SERVICES,PROGRAMMES,BAE SYSTEMS APPLIED INTELLIGENCE LIMITED,473312,17822,GB641407169
BEIS,Met Office,2022-11-07,11 SERVICES,PROGRAMMES,BAE SYSTEMS APPLIED INTELLIGENCE LIMITED,473312,15946,GB641407169
BEIS,Met Office,2022-11-07,11 SERVICES,PROGRAMMES,BAE SYSTEMS APPLIED INTELLIGENCE LIMITED,473312,11959.5,GB641407169
BEIS,Met Office,2022-11-07,11 SERVICES,PROGRAMMES,BAE SYSTEMS APPLIED INTELLIGENCE LIMITED,473312,13200,GB641407169
BEIS,Met Office,2022-11-07,11 SERVICES,PROGRAMMES,BAE SYSTEMS APPLIED INTELLIGENCE LIMITED,473312,23260,GB641407169
BEIS,Met Office,2022-11-07,11 SERVICES,PROGRAMMES,BAE SYSTEMS APPLIED INTELLIGENCE LIMITED,473313,17822,GB641407169
BEIS,Met Office,2022-11-07,11 SERVICES,PROGRAMMES,BAE SYSTEMS APPLIED INTELLIGENCE LIMITED,473314,11361,GB641407169
BEIS,Met Office,2022-11-07,11 SERVICES,MARKETS,CACI LTD,473228,63798.23,380609841
BEIS,Met Office,2022-11-07,06 ACCOMMODATION,CHIEF FINANCIAL OFFICER,CALOR GAS LIMITED,473230,34.25,207610984
BEIS,Met Office,2022-11-07,06 ACCOMMODATION,CHIEF FINANCIAL OFFICER,CALOR GAS LIMITED,473232,34.25,207610984
BEIS,Met Office,2022-11-07,06 ACCOMMODATION,CHIEF FINANCIAL OFFICER,CALOR GAS LIMITED,473233,34.25,207610984
BEIS,Met Office,2022-11-07,06 ACCOMMODATION,CHIEF FINANCIAL OFFICER,CALOR GAS LIMITED,473234,34.25,207610984
BEIS,Met Office,2022-11-07,06 ACCOMMODATION,CHIEF FINANCIAL OFFICER,CALOR GAS LIMITED,473235,34.25,207610984
BEIS,Met Office,2022-11-07,06 ACCOMMODATION,CHIEF FINANCIAL OFFICER,CALOR GAS LIMITED,473236,19.61,207610984
BEIS,Met Office,2022-11-07,06 ACCOMMODATION,CHIEF FINANCIAL OFFICER,CALOR GAS LIMITED,473237,34.25,207610984
BEIS,Met Office,2022-11-07,06 ACCOMMODATION,CHIEF FINANCIAL OFFICER,CALOR GAS LIMITED,473238,49.18,207610984
BEIS,Met Office,2022-11-07,11 SERVICES,PROGRAMMES,Cgi It Uk Limited,473204,36074,232615194
BEIS,Met Office,2022-11-07,11 SERVICES,PROGRAMMES,Cgi It Uk Limited,473205,49702,232615194
BEIS,Met Office,2022-11-07,11 SERVICES,PROGRAMMES,Cgi It Uk Limited,473207,26425,232615194
BEIS,Met Office,2022-11-07,03 STAFF COSTS T&S,TECHNOLOGY AND CIO,CHARLIE'S TRAVEL LTD,473078,302.73,783848277
BEIS,Met Office,2022-11-07,INFORMATION TECHNOLOGY,TECHNOLOGY AND CIO,COMPUTACENTER (UK) LTD,473357,61995.75,490334648
BEIS,Met Office,2022-11-07,06 ACCOMMODATION,CHIEF FINANCIAL OFFICER,D&G OFFICE SERVICES LTD,473289,360,272997547
BEIS,Met Office,2022-11-07,06 ACCOMMODATION,CHIEF FINANCIAL OFFICER,D&G OFFICE SERVICES LTD,473289,360,272997547
BEIS,Met Office,2022-11-07,06 ACCOMMODATION,CHIEF FINANCIAL OFFICER,D&G OFFICE SERVICES LTD,473289,360,272997547
BEIS,Met Office,2022-11-07,06 ACCOMMODATION,CHIEF FINANCIAL OFFICER,D&G OFFICE SERVICES LTD,473289,360,272997547
BEIS,Met Office,2022-11-07,03 STAFF COSTS T&S,SERVICES,DBS FINANCE RECEIPTS CTS,473217,5629,888805068
BEIS,Met Office,2022-11-07,03 STAFF COSTS T&S,TECHNOLOGY AND CIO,DBS FINANCE RECEIPTS CTS,473217,4785,888805068
BEIS,Met Office,2022-11-07,13 MISCELLANEOUS,PEOPLE,EDENRED - CHILDCARE VOUCHERS,473383,10906,649 503 520
BEIS,Met Office,2022-11-07,01 STAFF COSTS PAY,PEOPLE,EDENRED I&M (IRS VOUCHERS),472965,29832,649 503 520
BEIS,Met Office,2022-11-07,13 MISCELLANEOUS,PEOPLE,EDENRED I&M (IRS VOUCHERS),473203,0,649 503 520
BEIS,Met Office,2022-11-07,13 MISCELLANEOUS,PEOPLE,EDENRED I&M (IRS VOUCHERS),473203,34037.4,649 503 520
BEIS,Met Office,2022-11-07,03 STAFF COSTS T&S,CHIEF FINANCIAL OFFICER,ENTERPRISE RENT A CAR UK LTD,473329,75,215557314
BEIS,Met Office,2022-11-07,03 STAFF COSTS T&S,CHIEF FINANCIAL OFFICER,ENTERPRISE RENT A CAR UK LTD,473359,1177.57,215557314
BEIS,Met Office,2022-11-07,03 STAFF COSTS T&S,CHIEF FINANCIAL OFFICER,ENTERPRISE RENT A CAR UK LTD,473361,2960.78,215557314
BEIS,Met Office,2022-11-07,11 SERVICES,PROGRAMMES,FLYFORM LTD,473102,4477.5,237333808
BEIS,Met Office,2022-11-07,11 SERVICES,CHIEF FINANCIAL OFFICER,GB GROUP PLC,473326,566.52,539716218
BEIS,Met Office,2022-11-07,INFORMATION TECHNOLOGY,SERVICES,INMARSAT SOLUTIONS (CANADA) INC,473213,43.14,766144223
BEIS,Met Office,2022-11-07,INFORMATION TECHNOLOGY,SERVICES,INMARSAT SOLUTIONS (CANADA) INC,473214,86.28,766144223
BEIS,Met Office,2022-11-07,INFORMATION TECHNOLOGY,SERVICES,INMARSAT SOLUTIONS (CANADA) INC,473215,2210.28,766144223
BEIS,Met Office,2022-11-07,INFORMATION TECHNOLOGY,SERVICES,INMARSAT SOLUTIONS (CANADA) INC,473216,43.14,766144223
BEIS,Met Office,2022-11-07,11 SERVICES,CHIEF FINANCIAL OFFICER,INTEROUTE COMMUNICATIONS LIMITED,473379,7100,832 7071 39
BEIS,Met Office,2022-11-07,11 SERVICES,PROGRAMMES,MADE TECH,473375,75125,938565184
BEIS,Met Office,2022-11-07,04 CONTRACTORS,PEOPLE,MATRIX SCM LIMITED,473221,190087.57,249 5734 68
BEIS,Met Office,2022-11-07,11 SERVICES,OFFICE OF THE CEO,MAZARS LLP,473392,14000,839835673
BEIS,Met Office,2022-11-07,11 SERVICES,OFFICE OF THE CEO,MAZARS LLP,473393,10000,839835673
BEIS,Met Office,2022-11-07,11 SERVICES,TECHNOLOGY AND CIO,NCC SERVICES  LIMITED,472716,13515,732334556
BEIS,Met Office,2022-11-07,11 SERVICES,CHIEF FINANCIAL OFFICER,OPEN TEXT UK LTD,473295,100,837871308
BEIS,Met Office,2022-11-07,11 SERVICES,CHIEF FINANCIAL OFFICER,POSTURITE (UK) LTD,471355,3426.12,583565114
BEIS,Met Office,2022-11-07,11 SERVICES,CHIEF FINANCIAL OFFICER,POSTURITE (UK) LTD,472021,155.07,583565114
BEIS,Met Office,2022-11-07,11 SERVICES,CHIEF FINANCIAL OFFICER,POSTURITE (UK) LTD,473037,27.62,583565114
BEIS,Met Office,2022-11-07,11 SERVICES,CHIEF FINANCIAL OFFICER,POSTURITE (UK) LTD,473038,42.73,583565114
BEIS,Met Office,2022-11-07,11 SERVICES,CHIEF FINANCIAL OFFICER,POSTURITE (UK) LTD,473223,50,583565114
BEIS,Met Office,2022-11-07,11 SERVICES,CHIEF FINANCIAL OFFICER,POSTURITE (UK) LTD,473224,50,583565114
BEIS,Met Office,2022-11-07,06 ACCOMMODATION,CHIEF FINANCIAL OFFICER,RIVER RIDGE,473298,117.53,176286083
BEIS,Met Office,2022-11-07,06 ACCOMMODATION,CHIEF FINANCIAL OFFICER,ROYAL PARKS,473231,281.58,888845836
BEIS,Met Office,2022-11-07,11 SERVICES,PROGRAMMES,UK ATOMIC ENERGY AUTHORITY,473050,88017.25,GB570101391
BEIS,Met Office,2022-11-07,11 SERVICES,PROGRAMMES,UK ATOMIC ENERGY AUTHORITY,473052,88017.25,GB570101391
BEIS,Met Office,2022-11-07,11 SERVICES,PROGRAMMES,UK ATOMIC ENERGY AUTHORITY,473291,-88017.25,GB570101391
BEIS,Met Office,2022-11-07,11 SERVICES,PROGRAMMES,UK ATOMIC ENERGY AUTHORITY,473292,88017.25,GB570101391
BEIS,Met Office,2022-11-07,11 SERVICES,PROGRAMMES,UK ATOMIC ENERGY AUTHORITY,473293,88017.25,GB570101391
BEIS,Met Office,2022-11-07,11 SERVICES,PROGRAMMES,UK ATOMIC ENERGY AUTHORITY,473296,-88017.25,GB570101391
BEIS,Met Office,2022-11-07,13 MISCELLANEOUS,SCIENCE,University Of Leeds,472839,1000,613451470
BEIS,Met Office,2022-11-07,07 EQUIPMENT,SERVICES,University Of St Andrews,473283,10000,607606448
BEIS,Met Office,2022-11-07,11 SERVICES,MARKETS,WORLDPAY LTD,473109,23.45,991280207
BEIS,Met Office,2022-11-08,11 SERVICES,SERVICES,ALPHABET (GB) LTD,430352,-22.6,572417244
BEIS,Met Office,2022-11-08,11 SERVICES,SERVICES,ALPHABET (GB) LTD,460276,-51.77,572417244
BEIS,Met Office,2022-11-08,11 SERVICES,SERVICES,ALPHABET (GB) LTD,460277,-18.24,572417244
BEIS,Met Office,2022-11-08,11 SERVICES,SERVICES,ALPHABET (GB) LTD,460278,-113.24,572417244
BEIS,Met Office,2022-11-08,11 SERVICES,SERVICES,ALPHABET (GB) LTD,460279,-137.32,572417244
BEIS,Met Office,2022-11-08,11 SERVICES,SERVICES,ALPHABET (GB) LTD,460281,-308.1,572417244
BEIS,Met Office,2022-11-08,11 SERVICES,SERVICES,ALPHABET (GB) LTD,460282,-2408.65,572417244
BEIS,Met Office,2022-11-08,11 SERVICES,SERVICES,ALPHABET (GB) LTD,460283,-649.96,572417244
BEIS,Met Office,2022-11-08,11 SERVICES,SERVICES,ALPHABET (GB) LTD,460284,-223.96,572417244
BEIS,Met Office,2022-11-08,11 SERVICES,SERVICES,ALPHABET (GB) LTD,460285,-224.21,572417244
BEIS,Met Office,2022-11-08,11 SERVICES,SERVICES,ALPHABET (GB) LTD,460286,-40,572417244
BEIS,Met Office,2022-11-08,11 SERVICES,SERVICES,ALPHABET (GB) LTD,460292,-60.27,572417244
BEIS,Met Office,2022-11-08,11 SERVICES,SERVICES,ALPHABET (GB) LTD,461315,-492.61,572417244
BEIS,Met Office,2022-11-08,11 SERVICES,SERVICES,ALPHABET (GB) LTD,461316,-492.61,572417244
BEIS,Met Office,2022-11-08,13 MISCELLANEOUS,CHIEF FINANCIAL OFFICER,ANTRIM HILLS SPRING WATER CO LTD,473395,27,517173455
BEIS,Met Office,2022-11-08,11 SERVICES,TECHNOLOGY AND CIO,BAE SYSTEMS APPLIED INTELLIGENCE LIMITED,472847,5410.02,GB641407169
BEIS,Met Office,2022-11-08,11 SERVICES,TECHNOLOGY AND CIO,BAE SYSTEMS APPLIED INTELLIGENCE LIMITED,473299,1271.25,GB641407169
BEIS,Met Office,2022-11-08,11 SERVICES,TECHNOLOGY AND CIO,BAE SYSTEMS APPLIED INTELLIGENCE LIMITED,473301,10972.5,GB641407169
BEIS,Met Office,2022-11-08,11 SERVICES,TECHNOLOGY AND CIO,BAE SYSTEMS APPLIED INTELLIGENCE LIMITED,473303,10972.5,GB641407169
BEIS,Met Office,2022-11-08,11 SERVICES,TECHNOLOGY AND CIO,BAE SYSTEMS APPLIED INTELLIGENCE LIMITED,473315,5940,GB641407169
BEIS,Met Office,2022-11-08,11 SERVICES,TECHNOLOGY AND CIO,BAE SYSTEMS APPLIED INTELLIGENCE LIMITED,473318,13200,GB641407169
BEIS,Met Office,2022-11-08,11 SERVICES,TECHNOLOGY AND CIO,BAE SYSTEMS APPLIED INTELLIGENCE LIMITED,473319,10820,GB641407169
BEIS,Met Office,2022-11-08,11 SERVICES,TECHNOLOGY AND CIO,BAE SYSTEMS APPLIED INTELLIGENCE LIMITED,473320,6750,GB641407169
BEIS,Met Office,2022-11-08,11 SERVICES,TECHNOLOGY AND CIO,BAE SYSTEMS APPLIED INTELLIGENCE LIMITED,473321,2705,GB641407169
BEIS,Met Office,2022-11-08,11 SERVICES,TECHNOLOGY AND CIO,BAE SYSTEMS APPLIED INTELLIGENCE LIMITED,473322,11880,GB641407169
BEIS,Met Office,2022-11-08,11 SERVICES,TECHNOLOGY AND CIO,BAE SYSTEMS APPLIED INTELLIGENCE LIMITED,473323,8579.99,GB641407169
BEIS,Met Office,2022-11-08,08 SOFTWARE LICENCES,TECHNOLOGY AND CIO,BOXXE,473437,2024,734245248
BEIS,Met Office,2022-11-08,08 SOFTWARE LICENCES,TECHNOLOGY AND CIO,COMPUTACENTER (UK) LTD,473436,27673.6,490334648
BEIS,Met Office,2022-11-08,11 SERVICES,SERVICES,FLYFORM LTD,473101,4975,237333808
BEIS,Met Office,2022-11-08,11 SERVICES,PEOPLE,HEALTH ASSURED LIMITED,473284,1120,927 5242 17
BEIS,Met Office,2022-11-08,13 MISCELLANEOUS,PEOPLE,RESTORE RECORDS MANAGEMENT,473362,13.18,843 863011
BEIS,Met Office,2022-11-08,11 SERVICES,PROGRAMMES,ROWE IT LTD,473398,115145.9,924964394
BEIS,Met Office,2022-11-08,11 SERVICES,PROGRAMMES,ROWE IT LTD,473402,179150,924964394
BEIS,Met Office,2022-11-08,11 SERVICES,PEOPLE,RUNTIME COLLECTIVE LTD T/A BRANDWATCH,473285,6174,754750710
BEIS,Met Office,2022-11-08,11 SERVICES,OFFICE OF THE CEO,ST GEORGE'S HOUSE TRUST,473325,200,727 4336 29
BEIS,Met Office,2022-11-08,11 SERVICES,PROGRAMMES,WESTHILL KNOWLEDGE LIMITED,473397,12180,128166218
BEIS,Met Office,2022-11-09,11 SERVICES,TECHNOLOGY AND CIO,AKAMAI TECHNOLOGIES LTD,473308,25836.75,745091237
BEIS,Met Office,2022-11-09,11 SERVICES,TECHNOLOGY AND CIO,AKAMAI TECHNOLOGIES LTD,473308,4921.28,745091237
BEIS,Met Office,2022-11-09,11 SERVICES,MARKETS,BEIS,473455,540574.55,888825550
BEIS,Met Office,2022-11-09,11 SERVICES,CHIEF FINANCIAL OFFICER,BT GLOBAL SERVICES,473394,12088.96,245719348
BEIS,Met Office,2022-11-09,06 ACCOMMODATION,CHIEF FINANCIAL OFFICER,CBRE MANAGED SERVICES LTD,473434,2564.84,853936883
BEIS,Met Office,2022-11-09,08 SOFTWARE LICENCES,SERVICES,COGNIZANT WORLDWIDE LIMITED,473337,9977.25,123382928
BEIS,Met Office,2022-11-09,13 MISCELLANEOUS,CHIEF FINANCIAL OFFICER,DEMSTAR BUSINESS SOLUTIONS LTD,24321,96.91,10156145J
BEIS,Met Office,2022-11-09,11 SERVICES,CHIEF FINANCIAL OFFICER,DEVON WILDLIFE ENTERPRISES LTD,473450,106,585473501
BEIS,Met Office,2022-11-09,11 SERVICES,PROGRAMMES,Esri (Uk) Ltd,473201,10114.07,787430791
BEIS,Met Office,2022-11-09,11 SERVICES,PROGRAMMES,FUNDACAO ARTHUR BERNARDES - FUNARBE,473401,288102.09,-
BEIS,Met Office,2022-11-09,08 SOFTWARE LICENCES,TECHNOLOGY AND CIO,GOOGLE IRELAND LTD,473445,58.77,6388047V
BEIS,Met Office,2022-11-09,11 SERVICES,MARKETS,"IBL SOFTWARE ENGINEERING, SPOL S.R.O.",472662,5353.9,SK2020241883
BEIS,Met Office,2022-11-09,11 SERVICES,MARKETS,"IBL SOFTWARE ENGINEERING, SPOL S.R.O.",472663,840.34,SK2020241883
BEIS,Met Office,2022-11-09,08 SOFTWARE LICENCES,TECHNOLOGY AND CIO,Ibm United Kingdom Ltd,473220,6292.52,107328000
BEIS,Met Office,2022-11-09,11 SERVICES,OFFICE OF THE CEO,OSBORNE CLARKE LLP,473356,7000,GB138187353
BEIS,Met Office,2022-11-09,11 SERVICES,CHIEF FINANCIAL OFFICER,POSTURITE (UK) LTD,473307,732.22,583565114
BEIS,Met Office,2022-11-09,11 SERVICES,CHIEF FINANCIAL OFFICER,POSTURITE (UK) LTD,473358,50,583565114
BEIS,Met Office,2022-11-09,06 ACCOMMODATION,CHIEF FINANCIAL OFFICER,POWER NI ENERGY LTD,473381,426.21,617518142
BEIS,Met Office,2022-11-09,06 ACCOMMODATION,CHIEF FINANCIAL OFFICER,POWER NI ENERGY LTD,473382,511.18,617518142
BEIS,Met Office,2022-11-09,11 SERVICES,PROGRAMMES,PRESTIGE NETWORK LTD,472848,7760,529 1145 55
BEIS,Met Office,2022-11-09,12 INTERNATIONAL,MARKETS,REDACTED PERSONAL DATA,10833,3030.13,-
BEIS,Met Office,2022-11-09,11 SERVICES,SERVICES,SOFTWIRE TECHNOLOGY LIMITED,473433,4200,752 1253 57
BEIS,Met Office,2022-11-09,06 ACCOMMODATION,CHIEF FINANCIAL OFFICER,South West Water Ltd,473384,2166,236873674
BEIS,Met Office,2022-11-09,06 ACCOMMODATION,CHIEF FINANCIAL OFFICER,South West Water Ltd,473444,4711.47,236873674
BEIS,Met Office,2022-11-09,08 SOFTWARE LICENCES,SERVICES,SOUTRON GLOBAL INC,473396,6728,863868129
BEIS,Met Office,2022-11-09,11 SERVICES,MARKETS,SWANTECH LOGISTICS LTD,473226,480,769332401
BEIS,Met Office,2022-11-09,06 ACCOMMODATION,CHIEF FINANCIAL OFFICER,THE NATIONAL TRUST FOR SCOTLAND,473451,600,429459027
BEIS,Met Office,2022-11-09,11 SERVICES,MARKETS,WORLDPAY (UK) LTD,473352,67.6,991280207
BEIS,Met Office,2022-11-09,11 SERVICES,MARKETS,WORLDPAY (UK) LTD,473353,524.34,991280207
BEIS,Met Office,2022-11-09,11 SERVICES,MARKETS,WORLDPAY (UK) LTD,473354,48.77,991280207
BEIS,Met Office,2022-11-09,11 SERVICES,PEOPLE,YOUGOV PLC,471991,3775,991228109
BEIS,Met Office,2022-11-10,11 SERVICES,MARKETS,ACCELERATION EMARKETING,473443,3077.84,848940776
BEIS,Met Office,2022-11-10,11 SERVICES,TECHNOLOGY AND CIO,BAE SYSTEMS APPLIED INTELLIGENCE LIMITED,473343,7559.5,GB641407169
BEIS,Met Office,2022-11-10,11 SERVICES,TECHNOLOGY AND CIO,BAE SYSTEMS APPLIED INTELLIGENCE LIMITED,473364,6930,GB641407169
BEIS,Met Office,2022-11-10,11 SERVICES,TECHNOLOGY AND CIO,BAE SYSTEMS APPLIED INTELLIGENCE LIMITED,473365,4221,GB641407169
BEIS,Met Office,2022-11-10,11 SERVICES,TECHNOLOGY AND CIO,BAE SYSTEMS APPLIED INTELLIGENCE LIMITED,473366,7260,GB641407169
BEIS,Met Office,2022-11-10,11 SERVICES,TECHNOLOGY AND CIO,BAE SYSTEMS APPLIED INTELLIGENCE LIMITED,473367,4050,GB641407169
BEIS,Met Office,2022-11-10,11 SERVICES,TECHNOLOGY AND CIO,BAE SYSTEMS APPLIED INTELLIGENCE LIMITED,473368,17822,GB641407169
BEIS,Met Office,2022-11-10,11 SERVICES,TECHNOLOGY AND CIO,BAE SYSTEMS APPLIED INTELLIGENCE LIMITED,473369,18760,GB641407169
BEIS,Met Office,2022-11-10,11 SERVICES,TECHNOLOGY AND CIO,BAE SYSTEMS APPLIED INTELLIGENCE LIMITED,473370,16884,GB641407169
BEIS,Met Office,2022-11-10,11 SERVICES,TECHNOLOGY AND CIO,BAE SYSTEMS APPLIED INTELLIGENCE LIMITED,473371,18760,GB641407169
BEIS,Met Office,2022-11-10,11 SERVICES,TECHNOLOGY AND CIO,BAE SYSTEMS APPLIED INTELLIGENCE LIMITED,473372,12194,GB641407169
BEIS,Met Office,2022-11-10,11 SERVICES,MARKETS,BJSS LIMITED,473385,3950,613295452
BEIS,Met Office,2022-11-10,11 SERVICES,MARKETS,BJSS LIMITED,473386,4700,613295452
BEIS,Met Office,2022-11-10,11 SERVICES,PROGRAMMES,BJSS LIMITED,473387,6875,613295452
BEIS,Met Office,2022-11-10,11 SERVICES,TECHNOLOGY AND CIO,BJSS LIMITED,473388,27471,613295452
BEIS,Met Office,2022-11-10,11 SERVICES,PROGRAMMES,BJSS LIMITED,473389,32665.37,613295452
BEIS,Met Office,2022-11-10,11 SERVICES,PROGRAMMES,BJSS LIMITED,473389,57728.38,613295452
BEIS,Met Office,2022-11-10,11 SERVICES,PROGRAMMES,BJSS LIMITED,473390,6250,613295452
BEIS,Met Office,2022-11-10,11 SERVICES,TECHNOLOGY AND CIO,BJSS LIMITED,473391,87941,613295452
BEIS,Met Office,2022-11-10,11 SERVICES,OFFICE OF THE CEO,Cipd,467759,725,756 202 737.
BEIS,Met Office,2022-11-10,11 SERVICES,OFFICE OF THE CEO,Cipd,469963,-725,756 202 737.
BEIS,Met Office,2022-11-10,11 SERVICES,PEOPLE,Cipd,473546,7500,756 202 737.
BEIS,Met Office,2022-11-10,11 SERVICES,CHIEF FINANCIAL OFFICER,COOPERS2 LTD,473452,19719.82,134 2026 58
BEIS,Met Office,2022-11-10,06 ACCOMMODATION,CHIEF FINANCIAL OFFICER,D&G OFFICE SERVICES LTD,473355,5014.1,272997547
BEIS,Met Office,2022-11-10,11 SERVICES,SERVICES,DAVID HIDE ASTHMA & ALLERGY RES CENTRE,473360,2527,NOTVATREGD
BEIS,Met Office,2022-11-10,13 MISCELLANEOUS,CHIEF FINANCIAL OFFICER,EDEN SPRINGS UK LTD,473347,886.16,232160411
BEIS,Met Office,2022-11-10,13 MISCELLANEOUS,CHIEF FINANCIAL OFFICER,EDEN SPRINGS UK LTD,473348,40,232160411
BEIS,Met Office,2022-11-10,CYCLESCHEME,OTHER,EDENRED UK (CYCLESCHEME),473533,11511.7,649 503 520
BEIS,Met Office,2022-11-10,06 ACCOMMODATION,CHIEF FINANCIAL OFFICER,EDF ENERGY CUSTOMERS PLC,473438,165484.74,523041202
BEIS,Met Office,2022-11-10,06 ACCOMMODATION,CHIEF FINANCIAL OFFICER,EDF ENERGY CUSTOMERS PLC,473439,157501.29,523041202
BEIS,Met Office,2022-11-10,06 ACCOMMODATION,CHIEF FINANCIAL OFFICER,EDF ENERGY CUSTOMERS PLC,473440,433009.86,523041202
BEIS,Met Office,2022-11-10,06 ACCOMMODATION,CHIEF FINANCIAL OFFICER,EDF ENERGY CUSTOMERS PLC,473441,-178525.91,523041202
BEIS,Met Office,2022-11-10,06 ACCOMMODATION,CHIEF FINANCIAL OFFICER,EDF ENERGY CUSTOMERS PLC,473442,174200.53,523041202
BEIS,Met Office,2022-11-10,11 SERVICES,PROGRAMMES,FLYFORM LTD,472033,32150.94,237333808
BEIS,Met Office,2022-11-10,FIXTURE & FITTINGS,CHIEF FINANCIAL OFFICER,FMS INTERIOR SERVICES LTD,473448,13244.11,922056940
BEIS,Met Office,2022-11-10,11 SERVICES,CHIEF FINANCIAL OFFICER,G4S FIRE & SECURITY SYSTEMS (UK),473498,3567,238560256
BEIS,Met Office,2022-11-10,11 SERVICES,CHIEF FINANCIAL OFFICER,GAMMA TELECOM LTD,473538,27794.36,823820344
BEIS,Met Office,2022-11-10,03 STAFF COSTS T&S,SERVICES,HCR LTD,473454,8660.64,733 7205 46
BEIS,Met Office,2022-11-10,INFORMATION TECHNOLOGY,SERVICES,INMARSAT SOLUTIONS (CANADA) INC,473363,85.56,766144223
BEIS,Met Office,2022-11-10,INFORMATION TECHNOLOGY,SERVICES,INMARSAT SOLUTIONS (CANADA) INC,473378,42.78,766144223
BEIS,Met Office,2022-11-10,11 SERVICES,PROGRAMMES,KENYA METEOROLOGICAL DEPARTMENT,473212,4192.57,-
BEIS,Met Office,2022-11-10,11 SERVICES,SERVICES,MADE TECH,473374,218050,938565184
BEIS,Met Office,2022-11-10,11 SERVICES,SERVICES,MADE TECH,473376,2025,938565184
BEIS,Met Office,2022-11-10,11 SERVICES,PROGRAMMES,ROWE IT LTD,473339,15750,924964394
BEIS,Met Office,2022-11-10,11 SERVICES,CHIEF FINANCIAL OFFICER,SADDLES & PADDLES EXETER LTD,473336,4113.3,152264528
BEIS,Met Office,2022-11-10,11 SERVICES,PROGRAMMES,SPECIALIST COMPUTER CENTRES,473335,9514.5,313651680
BEIS,Met Office,2022-11-10,06 ACCOMMODATION,CHIEF FINANCIAL OFFICER,TOP RANK CLEANING SERVICES LTD,473399,914,-
BEIS,Met Office,2022-11-11,06 ACCOMMODATION,CHIEF FINANCIAL OFFICER,ABOVE THE REST COMMERCIAL CLEANING LTD,473496,500,166969348
BEIS,Met Office,2022-11-11,11 SERVICES,TECHNOLOGY AND CIO,BAE SYSTEMS APPLIED INTELLIGENCE LIMITED,473300,12540,GB641407169
BEIS,Met Office,2022-11-11,11 SERVICES,TECHNOLOGY AND CIO,BAE SYSTEMS APPLIED INTELLIGENCE LIMITED,473302,13200,GB641407169
BEIS,Met Office,2022-11-11,11 SERVICES,TECHNOLOGY AND CIO,BAE SYSTEMS APPLIED INTELLIGENCE LIMITED,473304,7368.75,GB641407169
BEIS,Met Office,2022-11-11,11 SERVICES,TECHNOLOGY AND CIO,BAE SYSTEMS APPLIED INTELLIGENCE LIMITED,473305,9000,GB641407169
BEIS,Met Office,2022-11-11,11 SERVICES,TECHNOLOGY AND CIO,BAE SYSTEMS APPLIED INTELLIGENCE LIMITED,473306,9197,GB641407169
BEIS,Met Office,2022-11-11,11 SERVICES,TECHNOLOGY AND CIO,BAE SYSTEMS APPLIED INTELLIGENCE LIMITED,473316,8325,GB641407169
BEIS,Met Office,2022-11-11,11 SERVICES,TECHNOLOGY AND CIO,BAE SYSTEMS APPLIED INTELLIGENCE LIMITED,473317,13200,GB641407169
BEIS,Met Office,2022-11-11,11 SERVICES,TECHNOLOGY AND CIO,BAE SYSTEMS APPLIED INTELLIGENCE LIMITED,473338,4690,GB641407169
BEIS,Met Office,2022-11-11,11 SERVICES,TECHNOLOGY AND CIO,BAE SYSTEMS APPLIED INTELLIGENCE LIMITED,473340,6412.5,GB641407169
BEIS,Met Office,2022-11-11,11 SERVICES,TECHNOLOGY AND CIO,BAE SYSTEMS APPLIED INTELLIGENCE LIMITED,473341,10820,GB641407169
BEIS,Met Office,2022-11-11,11 SERVICES,TECHNOLOGY AND CIO,BAE SYSTEMS APPLIED INTELLIGENCE LIMITED,473342,16884,GB641407169
BEIS,Met Office,2022-11-11,11 SERVICES,TECHNOLOGY AND CIO,BAE SYSTEMS APPLIED INTELLIGENCE LIMITED,473344,13035,GB641407169
BEIS,Met Office,2022-11-11,11 SERVICES,TECHNOLOGY AND CIO,BAE SYSTEMS APPLIED INTELLIGENCE LIMITED,473345,18291,GB641407169
BEIS,Met Office,2022-11-11,11 SERVICES,TECHNOLOGY AND CIO,BAE SYSTEMS APPLIED INTELLIGENCE LIMITED,473346,11256,GB641407169
BEIS,Met Office,2022-11-11,11 SERVICES,TECHNOLOGY AND CIO,BAE SYSTEMS APPLIED INTELLIGENCE LIMITED,473560,4275,GB641407169
BEIS,Met Office,2022-11-11,11 SERVICES,CHIEF FINANCIAL OFFICER,BESA PUBLICATIONS LIMITED,473549,8388,188 7521 61
BEIS,Met Office,2022-11-11,06 ACCOMMODATION,CHIEF FINANCIAL OFFICER,BIDVEST NOONAN UK LTD,473547,457.31,GB847176988
BEIS,Met Office,2022-11-11,11 SERVICES,SERVICES,CARDIFF SCHOOL OF HEALTH SCIENCES,473453,4633.2,542915736
BEIS,Met Office,2022-11-11,11 SERVICES,CHIEF FINANCIAL OFFICER,GAMMA TELECOM LTD,473545,570.83,823820344
BEIS,Met Office,2022-11-11,11 SERVICES,OTHER,HOGAN LOVELLS INTERNATIONAL LLP,473458,44548.17,GB123371543
BEIS,Met Office,2022-11-11,13 MISCELLANEOUS,SERVICES,IMAGETEK SYSTEMS LTD,473570,2664.5,GB586331424
BEIS,Met Office,2022-11-11,11 SERVICES,MARKETS,LHR BUSINESS SUPPORT CENTRE LTD,472593,66.65,927365404
BEIS,Met Office,2022-11-11,11 SERVICES,MARKETS,LHR BUSINESS SUPPORT CENTRE LTD,473435,62.65,927365404
BEIS,Met Office,2022-11-11,11 SERVICES,MARKETS,LHR BUSINESS SUPPORT CENTRE LTD,473525,13.75,927365404
BEIS,Met Office,2022-11-11,04 CONTRACTORS,PEOPLE,MATRIX SCM LIMITED,473552,244725.53,249 5734 68
BEIS,Met Office,2022-11-11,06 ACCOMMODATION,CHIEF FINANCIAL OFFICER,MOUNT CHARLES GROUP LTD,473534,576.36,517116274
BEIS,Met Office,2022-11-11,10 EQUIPMENT MAINTENANCE,SERVICES,Munro Instruments Ltd,473542,1563.9,977793930
BEIS,Met Office,2022-11-11,11 SERVICES,SERVICES,Munro Instruments Ltd,473542,39,977793930
BEIS,Met Office,2022-11-11,11 SERVICES,CHIEF FINANCIAL OFFICER,POSTURITE (UK) LTD,473540,695.84,583565114
BEIS,Met Office,2022-11-11,11 SERVICES,CHIEF FINANCIAL OFFICER,POSTURITE (UK) LTD,473541,76.57,583565114
BEIS,Met Office,2022-11-11,11 SERVICES,CHIEF FINANCIAL OFFICER,POSTURITE (UK) LTD,473563,60.14,583565114
BEIS,Met Office,2022-11-11,11 SERVICES,PEOPLE,REDACTED PERSONAL DATA,473526,765,143043312
BEIS,Met Office,2022-11-11,11 SERVICES,PEOPLE,REDACTED PERSONAL DATA,473528,825,143043312
BEIS,Met Office,2022-11-11,06 ACCOMMODATION,CHIEF FINANCIAL OFFICER,SAFESTORE LTD,473561,3430.33,722887607
BEIS,Met Office,2022-11-11,06 ACCOMMODATION,CHIEF FINANCIAL OFFICER,SHETLAND CLEANING SERVICES,473497,769.57,430028404
BEIS,Met Office,2022-11-11,11 SERVICES,MARKETS,SPOKE (INTERACTIVE) LTD,473449,700,840156451
BEIS,Met Office,2022-11-11,11 SERVICES,PROGRAMMES,UK ATOMIC ENERGY AUTHORITY,473568,54000,GB570101391
BEIS,Met Office,2022-11-11,13 MISCELLANEOUS,SCIENCE,University Of Oxford,473537,333.34,125506730
BEIS,Met Office,2022-11-14,11 SERVICES,SERVICES,APPLIED SATELLITE TECHNOLOGY SYSTEMS LTD,472764,683.22,720108683
BEIS,Met Office,2022-11-14,11 SERVICES,SERVICES,APPLIED SATELLITE TECHNOLOGY SYSTEMS LTD,472767,148.94,720108683
BEIS,Met Office,2022-11-14,11 SERVICES,SERVICES,APPLIED SATELLITE TECHNOLOGY SYSTEMS LTD,473530,369.06,720108683
BEIS,Met Office,2022-11-14,11 SERVICES,SERVICES,APPLIED SATELLITE TECHNOLOGY SYSTEMS LTD,473531,143.61,720108683
BEIS,Met Office,2022-11-14,06 ACCOMMODATION,CHIEF FINANCIAL OFFICER,BIDVEST NOONAN UK LTD,473566,1013.83,GB847176988
BEIS,Met Office,2022-11-14,11 SERVICES,SERVICES,BROADBEAN TECHNOLOGY LTD,473108,650,GB184088778
BEIS,Met Office,2022-11-14,06 ACCOMMODATION,CHIEF FINANCIAL OFFICER,BUSINESS SUPPORT CENTRE LTD,473569,46.06,927365208
BEIS,Met Office,2022-11-14,11 SERVICES,CHIEF FINANCIAL OFFICER,GIBRALTAR NYNEX COMMUNICATIONS LTD,473548,660,NOVAT
BEIS,Met Office,2022-11-14,11 SERVICES,CHIEF FINANCIAL OFFICER,JERSEY TELECOM,473637,1287.21,NOTVATREG
BEIS,Met Office,2022-11-14,11 SERVICES,CHIEF FINANCIAL OFFICER,LEX AUTOLEASE LTD,473495,5065.08,244155576
BEIS,Met Office,2022-11-14,11 SERVICES,PEOPLE,REDACTED PERSONAL DATA,473532,9455.5,143043312
BEIS,Met Office,2022-11-14,06 ACCOMMODATION,CHIEF FINANCIAL OFFICER,South West Water Ltd,473494,1197.14,236873674
BEIS,Met Office,2022-11-14,11 SERVICES,CHIEF FINANCIAL OFFICER,SURE SOUTH ATLANTIC LTD,473554,4943,-
BEIS,Met Office,2022-11-14,11 SERVICES,CHIEF FINANCIAL OFFICER,SURE SOUTH ATLANTIC LTD,473555,770,-
BEIS,Met Office,2022-11-14,11 SERVICES,CHIEF FINANCIAL OFFICER,TELEFONICA O2 UK LIMITED,473543,6218.23,778603785
BEIS,Met Office,2022-11-14,11 SERVICES,PEOPLE,THE STRENGTHS PEOPLE LTD,473544,1200,206868488
BEIS,Met Office,2022-11-14,11 SERVICES,SERVICES,Trinity House,473457,1862.1,243120414
BEIS,Met Office,2022-11-15,03 STAFF COSTS T&S,CHIEF FINANCIAL OFFICER,APPLE CENTRAL TAXIS,473641,2658.4,449238720
BEIS,Met Office,2022-11-15,INFORMATION TECHNOLOGY,TECHNOLOGY AND CIO,COMPUTACENTER (UK) LTD,473649,26999.07,490334648
BEIS,Met Office,2022-11-15,11 SERVICES,PEOPLE,ENGINEERING AND TECHNOLOGY BOARD,473553,4850,4322409
BEIS,Met Office,2022-11-15,08 SOFTWARE LICENCES,MARKETS,Esri (Uk) Ltd,473648,726,787430791
BEIS,Met Office,2022-11-15,11 SERVICES,PROGRAMMES,HOGAN LOVELLS INTERNATIONAL LLP,473643,21255.96,GB123371543
BEIS,Met Office,2022-11-15,11 SERVICES,PROGRAMMES,HOGAN LOVELLS INTERNATIONAL LLP,473643,6519.37,GB123371543
BEIS,Met Office,2022-11-15,04 CONTRACTORS,PEOPLE,MATRIX SCM LIMITED,472709,208376.3,249 5734 68
BEIS,Met Office,2022-11-15,04 CONTRACTORS,PEOPLE,MATRIX SCM LIMITED,472879,234089.71,249 5734 68
BEIS,Met Office,2022-11-15,11 SERVICES,PROGRAMMES,MICRO FOCUS SOFTWARE UK LTD,473676,419.45,GB 275 5061 96
BEIS,Met Office,2022-11-15,11 SERVICES,SERVICES,REDACTED PERSONAL DATA,473529,130.24,-
BEIS,Met Office,2022-11-15,07 EQUIPMENT,SERVICES,SB PRECISION ENGINEERING LTD,473446,212.5,137923104
BEIS,Met Office,2022-11-16,11 SERVICES,TECHNOLOGY AND CIO,AMAZON WEB SERVICES INC.,10820,29474.47,N/A
BEIS,Met Office,2022-11-16,11 SERVICES,CHIEF FINANCIAL OFFICER,ANVIL MOBILE LIMITED,473646,268.15,981686175
BEIS,Met Office,2022-11-16,11 SERVICES,CHIEF FINANCIAL OFFICER,BABBLE CLOUD LIMITED,473693,1110.91,GB206270049
BEIS,Met Office,2022-11-16,13 MISCELLANEOUS,CHIEF FINANCIAL OFFICER,BANNER GROUP LIMITED,473683,4.71,GB391085740
BEIS,Met Office,2022-11-16,07 EQUIPMENT,MARKETS,Campbell Scientific Ltd,473679,95,428453933
BEIS,Met Office,2022-11-16,07 EQUIPMENT,MARKETS,Campbell Scientific Ltd,473679,1804.5,428453933
BEIS,Met Office,2022-11-16,11 SERVICES,CHIEF FINANCIAL OFFICER,CARBON CONTROL LIMITED,473695,540,923 978678
BEIS,Met Office,2022-11-16,STOCK,SERVICES,CHARNWOOD FASTENERS LIMITED,473687,0,355315757
BEIS,Met Office,2022-11-16,TRADE CREDITORS,SERVICES,CHARNWOOD FASTENERS LIMITED,473687,4089,355315757
BEIS,Met Office,2022-11-16,11 SERVICES,SERVICES,CHARNWOOD FASTENERS LIMITED,473687,135,355315757
BEIS,Met Office,2022-11-16,11 SERVICES,PEOPLE,Exeter College,473493,3748,125451632
BEIS,Met Office,2022-11-16,08 SOFTWARE LICENCES,TECHNOLOGY AND CIO,"IBL SOFTWARE ENGINEERING, SPOL S.R.O.",472719,8001.18,SK2020241883
BEIS,Met Office,2022-11-16,08 SOFTWARE LICENCES,TECHNOLOGY AND CIO,"IBL SOFTWARE ENGINEERING, SPOL S.R.O.",472719,30801.5,SK2020241883
BEIS,Met Office,2022-11-16,11 SERVICES,CHIEF FINANCIAL OFFICER,INTEROUTE COMMUNICATIONS LIMITED,473694,7100,832 7071 39
BEIS,Met Office,2022-11-16,06 ACCOMMODATION,CHIEF FINANCIAL OFFICER,JAMES & MARCIA BENJAMIN,473121,520,-
BEIS,Met Office,2022-11-16,11 SERVICES,PROGRAMMES,JEREMY BENN ASSOCIATES LIMITED,473680,63167,GB 665300941
BEIS,Met Office,2022-11-16,11 SERVICES,PROGRAMMES,MAURITIUS METEOROLOGICAL SOCIETY,472248,9500,-
BEIS,Met Office,2022-11-16,07 EQUIPMENT,SERVICES,METOCEAN TELEMATICS LTD,10845,265.49,-
BEIS,Met Office,2022-11-16,06 ACCOMMODATION,CHIEF FINANCIAL OFFICER,Northern Ireland Water,473658,270,898746537
BEIS,Met Office,2022-11-16,11 SERVICES,SERVICES,NSSL GLOBAL LTD,10828,79.9,725151948
BEIS,Met Office,2022-11-16,11 SERVICES,SERVICES,NSSL GLOBAL LTD,10829,62.14,725151948
BEIS,Met Office,2022-11-16,11 SERVICES,SERVICES,NSSL GLOBAL LTD,10842,77.92,725151948
BEIS,Met Office,2022-11-16,11 SERVICES,SERVICES,NSSL GLOBAL LTD,10843,60.6,725151948
BEIS,Met Office,2022-11-16,11 SERVICES,CHIEF FINANCIAL OFFICER,POSTURITE (UK) LTD,473709,50,583565114
BEIS,Met Office,2022-11-16,11 SERVICES,CHIEF FINANCIAL OFFICER,POSTURITE (UK) LTD,473710,50,583565114
BEIS,Met Office,2022-11-16,06 ACCOMMODATION,MARKETS,R G JEFFREY,473684,500,GB 268954011
BEIS,Met Office,2022-11-16,06 ACCOMMODATION,MARKETS,R G JEFFREY,473684,72,GB 268954011
BEIS,Met Office,2022-11-16,10 EQUIPMENT MAINTENANCE,SERVICES,RAISE TELECOMS LTD,473677,19773,166016521
BEIS,Met Office,2022-11-16,06 ACCOMMODATION,CHIEF FINANCIAL OFFICER,South West Water Ltd,473698,0.02,236873674
BEIS,Met Office,2022-11-16,11 SERVICES,CHIEF FINANCIAL OFFICER,SURE SOUTH ATLANTIC LTD,473696,2129.77,NOVATREG
BEIS,Met Office,2022-11-16,11 SERVICES,CHIEF FINANCIAL OFFICER,SURE SOUTH ATLANTIC LTD (ST HELENA),473682,1650,30005
BEIS,Met Office,2022-11-16,11 SERVICES,SCIENCE,UNIVERSITATBERN,23208,3211.02,280255
BEIS,Met Office,2022-11-16,11 SERVICES,SCIENCE,UNIVERSITATBERN,23226,11545.53,280255
BEIS,Met Office,2022-11-16,11 SERVICES,PROGRAMMES,University Of Exeter,472213,157194,142047795
BEIS,Met Office,2022-11-16,07 EQUIPMENT,SERVICES,VAISALA LTD,24255,8520.09,336100011
BEIS,Met Office,2022-11-16,STOCK,SERVICES,VAISALA LTD,24256,0,336100011
BEIS,Met Office,2022-11-16,TRADE CREDITORS,SERVICES,VAISALA LTD,24256,11929.64,336100011
BEIS,Met Office,2022-11-16,STOCK,SERVICES,VAISALA LTD,24257,0,336100011
BEIS,Met Office,2022-11-16,TRADE CREDITORS,SERVICES,VAISALA LTD,24257,83508.12,336100011
BEIS,Met Office,2022-11-17,03 STAFF COSTS T&S,CHIEF FINANCIAL OFFICER,ALLSTAR BUSINESS SOLUTIONS LTD,473712,4307.97,747880191
BEIS,Met Office,2022-11-17,11 SERVICES,CHIEF FINANCIAL OFFICER,BT CONFERENCING,473636,40.88,245719348
BEIS,Met Office,2022-11-17,11 SERVICES,TECHNOLOGY AND CIO,CLOUDREACH EUROPE LIMITED,473678,3827.06,978187168
BEIS,Met Office,2022-11-17,07 EQUIPMENT,CHIEF FINANCIAL OFFICER,COMPUTACENTER (UK) LTD,473767,1044.66,490334648
BEIS,Met Office,2022-11-17,11 SERVICES,PROGRAMMES,Dstl,473708,5586.41,888805166
BEIS,Met Office,2022-11-17,11 SERVICES,PROGRAMMES,E CO.,473714,11875,GB238535057
BEIS,Met Office,2022-11-17,03 STAFF COSTS T&S,CHIEF FINANCIAL OFFICER,ENTERPRISE RENT A CAR UK LTD,473751,2910.28,215557314
BEIS,Met Office,2022-11-17,03 STAFF COSTS T&S,CHIEF FINANCIAL OFFICER,ENTERPRISE RENT A CAR UK LTD,473752,203.06,215557314
BEIS,Met Office,2022-11-17,06 ACCOMMODATION,CHIEF FINANCIAL OFFICER,HAFREN DYFRDWY CYFYNGEDIG,473744,375,486985565
BEIS,Met Office,2022-11-17,13 MISCELLANEOUS,PEOPLE,HEALTH MANAGEMENT LTD,473635,1375,792250621
BEIS,Met Office,2022-11-17,11 SERVICES,OTHER,HOGAN LOVELLS INTERNATIONAL LLP,473644,18354.77,GB123371543
BEIS,Met Office,2022-11-17,11 SERVICES,OTHER,HOGAN LOVELLS INTERNATIONAL LLP,473645,1057.5,GB123371543
BEIS,Met Office,2022-11-17,07 EQUIPMENT,SERVICES,M C ENGINEERING SERVICES,473711,1397.1,813172066
BEIS,Met Office,2022-11-17,11 SERVICES,MARKETS,ULTRA ELECTRONICS LTD NUCLEAR CONTROL SYSTEMS,473745,8511.72,123340754
BEIS,Met Office,2022-11-17,11 SERVICES,MARKETS,ULTRA ELECTRONICS LTD NUCLEAR CONTROL SYSTEMS,473746,8511.72,123340754
BEIS,Met Office,2022-11-17,11 SERVICES,PROGRAMMES,University Of Leeds,473748,49851.64,613451470
BEIS,Met Office,2022-11-18,11 SERVICES,TECHNOLOGY AND CIO,CLOUDREACH EUROPE LIMITED,473766,5150,978187168
BEIS,Met Office,2022-11-18,08 SOFTWARE LICENCES,TECHNOLOGY AND CIO,COMPUTACENTER (UK) LTD,473681,160669.72,490334648
BEIS,Met Office,2022-11-18,04 CONTRACTORS,PEOPLE,MATRIX SCM LIMITED,473749,220752.95,249 5734 68
BEIS,Met Office,2022-11-18,FIXTURE & FITTINGS,CHIEF FINANCIAL OFFICER,SIGNS EXPRESS (EXETER),473765,23.2,631397439
BEIS,Met Office,2022-11-21,06 ACCOMMODATION,CHIEF FINANCIAL OFFICER,ANGLIAN WATER BUSINESS NATIONAL LTD,473753,-31.68,51406002
BEIS,Met Office,2022-11-21,06 ACCOMMODATION,CHIEF FINANCIAL OFFICER,ANGLIAN WATER BUSINESS NATIONAL LTD,473755,63.36,51406002
BEIS,Met Office,2022-11-21,11 SERVICES,SERVICES,APPLIED SATELLITE TECHNOLOGY SYSTEMS LTD,473798,148.69,720108683
BEIS,Met Office,2022-11-21,08 SOFTWARE LICENCES,CHIEF FINANCIAL OFFICER,CEMAR,473771,850,915042161
BEIS,Met Office,2022-11-21,11 SERVICES,MARKETS,DBS FINANCE RECEIPTS CTS,473297,42263.41,888805068
BEIS,Met Office,2022-11-21,11 SERVICES,MARKETS,DJS RESEARCH LIMITED,473761,17000,775718779
BEIS,Met Office,2022-11-21,03 STAFF COSTS T&S,CHIEF FINANCIAL OFFICER,ENTERPRISE RENT A CAR UK LTD,473833,418.51,215557314
BEIS,Met Office,2022-11-21,03 STAFF COSTS T&S,CHIEF FINANCIAL OFFICER,ENTERPRISE RENT A CAR UK LTD,473834,2681.58,215557314
BEIS,Met Office,2022-11-21,11 SERVICES,PROGRAMMES,GAMMA TELECOM LTD,473539,2874.09,823820344
BEIS,Met Office,2022-11-21,11 SERVICES,PROGRAMMES,GAMMA TELECOM LTD,473539,1924.47,823820344
BEIS,Met Office,2022-11-21,11 SERVICES,CHIEF FINANCIAL OFFICER,GIBRALTAR NYNEX COMMUNICATIONS LTD,473786,660,NOVAT
BEIS,Met Office,2022-11-21,06 ACCOMMODATION,CHIEF FINANCIAL OFFICER,GOVERNMENT PROPERTY AGENCY,466268,-6421.6,888 8508 47
BEIS,Met Office,2022-11-21,06 ACCOMMODATION,CHIEF FINANCIAL OFFICER,GOVERNMENT PROPERTY AGENCY,473088,988.05,888 8508 47
BEIS,Met Office,2022-11-21,06 ACCOMMODATION,CHIEF FINANCIAL OFFICER,GOVERNMENT PROPERTY AGENCY,473828,5759.81,888 8508 47
BEIS,Met Office,2022-11-21,07 EQUIPMENT,SERVICES,LEMO (UK) LTD,473807,15,193269240
BEIS,Met Office,2022-11-21,07 EQUIPMENT,SERVICES,LEMO (UK) LTD,473807,48.6,193269240
BEIS,Met Office,2022-11-21,07 EQUIPMENT,SERVICES,LEMO (UK) LTD,473807,3115.6,193269240
BEIS,Met Office,2022-11-21,07 EQUIPMENT,SERVICES,LEMO (UK) LTD,473807,1253,193269240
BEIS,Met Office,2022-11-21,07 EQUIPMENT,SERVICES,LEMO (UK) LTD,473807,801.3,193269240
BEIS,Met Office,2022-11-21,10 EQUIPMENT MAINTENANCE,SERVICES,M C ENGINEERING SERVICES,473826,325,813172066
BEIS,Met Office,2022-11-21,11 SERVICES,CHIEF FINANCIAL OFFICER,POSTURITE (UK) LTD,473222,699.67,583565114
BEIS,Met Office,2022-11-21,11 SERVICES,CHIEF FINANCIAL OFFICER,POSTURITE (UK) LTD,473787,71.95,583565114
BEIS,Met Office,2022-11-21,08 SOFTWARE LICENCES,TECHNOLOGY AND CIO,PROSPERON NETWORKS LTD,473810,6770.82,889545649
BEIS,Met Office,2022-11-21,10 EQUIPMENT MAINTENANCE,SERVICES,RAISE TELECOMS LTD,473788,2372.5,166016521
BEIS,Met Office,2022-11-21,11 SERVICES,CHIEF FINANCIAL OFFICER,REDACTED PERSONAL DATA,473756,550,-
BEIS,Met Office,2022-11-21,11 SERVICES,PROGRAMMES,UK CENTRE FOR ECOLOGY & HYDROLOGY (UKCEH),473815,109691.29,336940192
BEIS,Met Office,2022-11-22,06 ACCOMMODATION,CHIEF FINANCIAL OFFICER,Biffa Waste Services Ltd,473837,362.18,537911627
BEIS,Met Office,2022-11-22,06 ACCOMMODATION,CHIEF FINANCIAL OFFICER,Biffa Waste Services Ltd,473838,721.14,537911627
BEIS,Met Office,2022-11-22,06 ACCOMMODATION,CHIEF FINANCIAL OFFICER,Biffa Waste Services Ltd,473839,123.06,537911627
BEIS,Met Office,2022-11-22,06 ACCOMMODATION,CHIEF FINANCIAL OFFICER,Biffa Waste Services Ltd,473840,709.66,537911627
BEIS,Met Office,2022-11-22,06 ACCOMMODATION,CHIEF FINANCIAL OFFICER,Biffa Waste Services Ltd,473841,680.82,537911627
BEIS,Met Office,2022-11-22,06 ACCOMMODATION,CHIEF FINANCIAL OFFICER,Biffa Waste Services Ltd,473842,80.08,537911627
BEIS,Met Office,2022-11-22,06 ACCOMMODATION,CHIEF FINANCIAL OFFICER,Biffa Waste Services Ltd,473843,88.34,537911627
BEIS,Met Office,2022-11-22,06 ACCOMMODATION,CHIEF FINANCIAL OFFICER,Biffa Waste Services Ltd,473844,470.82,537911627
BEIS,Met Office,2022-11-22,11 SERVICES,CHIEF FINANCIAL OFFICER,BT GLOBAL SERVICES,473762,788.22,245719348
BEIS,Met Office,2022-11-22,03 STAFF COSTS T&S,SERVICES,FALKLAND ISLAND COMPANY LTD,473871,700,N/A
BEIS,Met Office,2022-11-22,03 STAFF COSTS T&S,SERVICES,FALKLAND ISLAND COMPANY LTD,473872,700,N/A
BEIS,Met Office,2022-11-22,03 STAFF COSTS T&S,SERVICES,FALKLAND ISLAND COMPANY LTD,473873,700,N/A
BEIS,Met Office,2022-11-22,11 SERVICES,CHIEF FINANCIAL OFFICER,FLYFORM LTD,473827,1492.5,237333808
BEIS,Met Office,2022-11-22,13 MISCELLANEOUS,CHIEF FINANCIAL OFFICER,HEALIX INSURANCE SERVICES LTD,473847,38460.74,-
BEIS,Met Office,2022-11-22,13 MISCELLANEOUS,CHIEF FINANCIAL OFFICER,HEALIX INTERNATIONAL,473850,10358.95,127632909
BEIS,Met Office,2022-11-22,11 SERVICES,CHIEF FINANCIAL OFFICER,Morton Fraser LLP,473846,182.5,269129336
BEIS,Met Office,2022-11-22,08 SOFTWARE LICENCES,TECHNOLOGY AND CIO,QUEST SOFTWARE INTERNATIONAL LTD,473772,5584.05,581955404
BEIS,Met Office,2022-11-23,11 SERVICES,TECHNOLOGY AND CIO,AMAZON WEB SERVICES EMEA SARL,10840,267330.42,GB 283644382
BEIS,Met Office,2022-11-23,11 SERVICES,TECHNOLOGY AND CIO,AMAZON WEB SERVICES EMEA SARL,10841,1350.18,GB 283644382
BEIS,Met Office,2022-11-23,11 SERVICES,SERVICES,APPLIED SATELLITE TECHNOLOGY SYSTEMS LTD,473799,2826.93,720108683
BEIS,Met Office,2022-11-23,11 SERVICES,SERVICES,APPLIED SATELLITE TECHNOLOGY SYSTEMS LTD,473802,71.72,720108683
BEIS,Met Office,2022-11-23,11 SERVICES,SERVICES,APPLIED SATELLITE TECHNOLOGY SYSTEMS LTD,473803,71.86,720108683
BEIS,Met Office,2022-11-23,11 SERVICES,SERVICES,APPLIED SATELLITE TECHNOLOGY SYSTEMS LTD,473804,35.86,720108683
BEIS,Met Office,2022-11-23,13 MISCELLANEOUS,TECHNOLOGY AND CIO,BSI STANDARDS,473551,2390,243457071
BEIS,Met Office,2022-11-23,11 SERVICES,CHIEF FINANCIAL OFFICER,BT GLOBAL SERVICES,473848,12977.85,245719348
BEIS,Met Office,2022-11-23,STOCK,SERVICES,Campbell Scientific Ltd,473813,0,428453933
BEIS,Met Office,2022-11-23,TRADE CREDITORS,SERVICES,Campbell Scientific Ltd,473813,5880.6,428453933
BEIS,Met Office,2022-11-23,11 SERVICES,SERVICES,Campbell Scientific Ltd,473813,50,428453933
BEIS,Met Office,2022-11-23,11 SERVICES,PEOPLE,CIVICA UK LIMITED,473825,7503.5,391171065
BEIS,Met Office,2022-11-23,11 SERVICES,CHIEF FINANCIAL OFFICER,EIR,24372,53.76,4736919B
BEIS,Met Office,2022-11-23,11 SERVICES,MARKETS,ESTELLUS  S.A.S.,24365,18902.3,FR 48514112234
BEIS,Met Office,2022-11-23,06 ACCOMMODATION,CHIEF FINANCIAL OFFICER,GRS BUILDING SERVICES SOUTH-WEST,473768,1327.29,-
BEIS,Met Office,2022-11-23,06 ACCOMMODATION,CHIEF FINANCIAL OFFICER,GRS BUILDING SERVICES SOUTH-WEST,473769,1327.29,-
BEIS,Met Office,2022-11-23,03 STAFF COSTS T&S,SERVICES,HCR LTD,473811,495,733 7205 46
BEIS,Met Office,2022-11-23,03 STAFF COSTS T&S,SERVICES,HCR LTD,473812,495,733 7205 46
BEIS,Met Office,2022-11-23,07 EQUIPMENT,SCIENCE,IHP INTERNATIONAL HEATING PRODUCTS AB,24364,419.18,SE556689732701
BEIS,Met Office,2022-11-23,07 EQUIPMENT,SCIENCE,IHP INTERNATIONAL HEATING PRODUCTS AB,24364,1163.89,SE556689732701
BEIS,Met Office,2022-11-23,11 SERVICES,CHIEF FINANCIAL OFFICER,Morton Fraser LLP,473845,281,269129336
BEIS,Met Office,2022-11-23,07 EQUIPMENT,CHIEF FINANCIAL OFFICER,NATWEST COMMERCIAL CARDS DIVISION,473896,2002.27,N/A
BEIS,Met Office,2022-11-23,TRADE CREDITORS,OTHER,NATWEST COMMERCIAL CARDS DIVISION,473897,202678.6,N/A
BEIS,Met Office,2022-11-23,11 SERVICES,CHIEF FINANCIAL OFFICER,POSTURITE (UK) LTD,473829,50,583565114
BEIS,Met Office,2022-11-23,11 SERVICES,CHIEF FINANCIAL OFFICER,POSTURITE (UK) LTD,473830,675.8,583565114
BEIS,Met Office,2022-11-23,11 SERVICES,CHIEF FINANCIAL OFFICER,POSTURITE (UK) LTD,473831,50,583565114
BEIS,Met Office,2022-11-23,11 SERVICES,CHIEF FINANCIAL OFFICER,POSTURITE (UK) LTD,473832,157.16,583565114
BEIS,Met Office,2022-11-23,11 SERVICES,PROGRAMMES,SCIENCE & TECHNOLOGY FACILITIES COUNCIL,473808,12500,287461957
BEIS,Met Office,2022-11-23,11 SERVICES,PEOPLE,SKILLTEC LIMITED,469355,1295,909833105
BEIS,Met Office,2022-11-23,08 SOFTWARE LICENCES,TECHNOLOGY AND CIO,SPECIALIST COMPUTER CENTRES,473870,379.05,313651680
BEIS,Met Office,2022-11-23,11 SERVICES,CHIEF FINANCIAL OFFICER,TELIA FINLAND OYJ,24368,155.77,FI14756079
BEIS,Met Office,2022-11-23,11 SERVICES,PROGRAMMES,University Of Leeds,473899,2500,613451470
BEIS,Met Office,2022-11-23,13 MISCELLANEOUS,CHIEF FINANCIAL OFFICER,VIZERRA SA,473809,5000,CHE-425.746.069
BEIS,Met Office,2022-11-24,STOCK,SERVICES,BDS,473119,0,537379609
BEIS,Met Office,2022-11-24,TRADE CREDITORS,SERVICES,BDS,473119,1710,537379609
BEIS,Met Office,2022-11-24,11 SERVICES,SERVICES,BDS,473119,52,537379609
BEIS,Met Office,2022-11-24,06 ACCOMMODATION,MARKETS,FORSS MANAGEMENT LIMITED,473893,290.31,-
BEIS,Met Office,2022-11-24,06 ACCOMMODATION,MARKETS,FORSS MANAGEMENT LIMITED,473894,114.08,-
BEIS,Met Office,2022-11-24,11 SERVICES,MARKETS,MAGPIE CREATIVE COMMUNICATIONS,473089,70000,117332539
BEIS,Met Office,2022-11-24,11 SERVICES,MARKETS,MAGPIE CREATIVE COMMUNICATIONS,473869,-70000,117332539
BEIS,Met Office,2022-11-24,11 SERVICES,CHIEF FINANCIAL OFFICER,MAWASEM LTD,473713,0,197694731
BEIS,Met Office,2022-11-24,11 SERVICES,CHIEF FINANCIAL OFFICER,MAWASEM LTD,473713,223043,197694731
BEIS,Met Office,2022-11-25,06 ACCOMMODATION,CHIEF FINANCIAL OFFICER,ENVIRONMENT AGENCY RECEIPTS,473880,610,662490134
BEIS,Met Office,2022-11-25,06 ACCOMMODATION,CHIEF FINANCIAL OFFICER,Exeter City Council,465752,140288,142335594
BEIS,Met Office,2022-11-25,11 SERVICES,PROGRAMMES,GAS SAFE CONSULTANTS LTD,473874,189,599946545
BEIS,Met Office,2022-11-25,11 SERVICES,SERVICES,GAS SAFE CONSULTANTS LTD,473874,950,599946545
BEIS,Met Office,2022-11-25,11 SERVICES,SERVICES,GAS SAFE CONSULTANTS LTD,473874,950,599946545
BEIS,Met Office,2022-11-25,11 SERVICES,SERVICES,GAS SAFE CONSULTANTS LTD,473874,1512,599946545
BEIS,Met Office,2022-11-25,06 ACCOMMODATION,CHIEF FINANCIAL OFFICER,GOVERNMENT PROPERTY AGENCY,473948,293.15,888 8508 47
BEIS,Met Office,2022-11-25,11 SERVICES,SERVICES,King'S College London,473951,4633.2,627403551
BEIS,Met Office,2022-11-25,STOCK,SERVICES,PHASE 2 MICROWAVE LTD,472775,0,852596004
BEIS,Met Office,2022-11-25,TRADE CREDITORS,SERVICES,PHASE 2 MICROWAVE LTD,472775,1060,852596004
BEIS,Met Office,2022-11-25,11 SERVICES,SERVICES,PHASE 2 MICROWAVE LTD,472775,15,852596004
BEIS,Met Office,2022-11-25,06 ACCOMMODATION,CHIEF FINANCIAL OFFICER,Sruc,473955,560,GB435882817
BEIS,Met Office,2022-11-25,11 SERVICES,PROGRAMMES,STAGE ENGAGE LTD,473953,2230,GB120210593
BEIS,Met Office,2022-11-25,11 SERVICES,CHIEF FINANCIAL OFFICER,TELEFONICA O2 UK LIMITED,473918,50.9,778603785
BEIS,Met Office,2022-11-28,11 SERVICES,PEOPLE,ACTIVE LEARNING TEAM LTD,473984,3500,-
BEIS,Met Office,2022-11-28,11 SERVICES,TECHNOLOGY AND CIO,BAE SYSTEMS APPLIED INTELLIGENCE LIMITED,473878,-9675,GB641407169
BEIS,Met Office,2022-11-28,11 SERVICES,TECHNOLOGY AND CIO,BAE SYSTEMS APPLIED INTELLIGENCE LIMITED,473959,8500,GB641407169
BEIS,Met Office,2022-11-28,11 SERVICES,TECHNOLOGY AND CIO,BAE SYSTEMS APPLIED INTELLIGENCE LIMITED,473960,10350,GB641407169
BEIS,Met Office,2022-11-28,11 SERVICES,TECHNOLOGY AND CIO,BAE SYSTEMS APPLIED INTELLIGENCE LIMITED,473961,11880,GB641407169
BEIS,Met Office,2022-11-28,11 SERVICES,TECHNOLOGY AND CIO,BAE SYSTEMS APPLIED INTELLIGENCE LIMITED,473962,18760,GB641407169
BEIS,Met Office,2022-11-28,11 SERVICES,TECHNOLOGY AND CIO,BAE SYSTEMS APPLIED INTELLIGENCE LIMITED,473970,9675,GB641407169
BEIS,Met Office,2022-11-28,06 ACCOMMODATION,CHIEF FINANCIAL OFFICER,CBRE MANAGED SERVICES LTD,473981,13010.87,853936883
BEIS,Met Office,2022-11-28,06 ACCOMMODATION,CHIEF FINANCIAL OFFICER,CBRE MANAGED SERVICES LTD,473983,40303.31,853936883
BEIS,Met Office,2022-11-28,06 ACCOMMODATION,CHIEF FINANCIAL OFFICER,CBRE MANAGED SERVICES LTD,473983,1,853936883
BEIS,Met Office,2022-11-28,06 ACCOMMODATION,CHIEF FINANCIAL OFFICER,GREENSTAR CLEANERS LTD,473980,110.37,492376222
BEIS,Met Office,2022-11-28,STOCK,SERVICES,H & B SENSORS LTD,473949,0,321828666
BEIS,Met Office,2022-11-28,TRADE CREDITORS,SERVICES,H & B SENSORS LTD,473949,8041,321828666
BEIS,Met Office,2022-11-28,11 SERVICES,SERVICES,H & B SENSORS LTD,473949,30,321828666
BEIS,Met Office,2022-11-28,11 SERVICES,MARKETS,JCT Ltd,473881,680,714 3761 44
BEIS,Met Office,2022-11-28,04 CONTRACTORS,PEOPLE,MATRIX SCM LIMITED,473943,205748.25,249 5734 68
BEIS,Met Office,2022-11-28,11 SERVICES,SERVICES,QA LTD,472782,866,864455303
BEIS,Met Office,2022-11-28,06 ACCOMMODATION,CHIEF FINANCIAL OFFICER,REDACTED PERSONAL DATA,473952,11548.25,N/A
BEIS,Met Office,2022-11-28,11 SERVICES,PEOPLE,RIVER TRAINING AND HR,473990,800,-
BEIS,Met Office,2022-11-28,PLANT AND EQUIPMENT,SERVICES,TOYOTA GB,473954,14.99,GB 679977144
BEIS,Met Office,2022-11-28,PLANT AND EQUIPMENT,SERVICES,TOYOTA GB,473954,23554.98,GB 679977144
BEIS,Met Office,2022-11-28,PLANT AND EQUIPMENT,SERVICES,TOYOTA GB,473954,55,GB 679977144
BEIS,Met Office,2022-11-28,PLANT AND EQUIPMENT,SERVICES,TOYOTA GB,473954,275,GB 679977144
BEIS,Met Office,2022-11-28,11 SERVICES,PROGRAMMES,UK ATOMIC ENERGY AUTHORITY,473046,15000,GB570101391
BEIS,Met Office,2022-11-29,13 MISCELLANEOUS,CHIEF FINANCIAL OFFICER,BANNER GROUP LIMITED,474009,1.14,GB391085740
BEIS,Met Office,2022-11-29,13 MISCELLANEOUS,CHIEF FINANCIAL OFFICER,BANNER GROUP LIMITED,474010,1.14,GB391085740
BEIS,Met Office,2022-11-29,11 SERVICES,CHIEF FINANCIAL OFFICER,BT plc,473950,7638.62,245719348
BEIS,Met Office,2022-11-29,11 SERVICES,CHIEF FINANCIAL OFFICER,BT plc,474053,631.4,245719348
BEIS,Met Office,2022-11-29,11 SERVICES,SERVICES,BUSINESS SUPPORT CENTRE LTD,474054,168,927365208
BEIS,Met Office,2022-11-29,INFORMATION TECHNOLOGY,PROGRAMMES,Campbell Scientific Ltd,473877,0,428453933
BEIS,Met Office,2022-11-29,INFORMATION TECHNOLOGY,PROGRAMMES,Campbell Scientific Ltd,473877,188,428453933
BEIS,Met Office,2022-11-29,INFORMATION TECHNOLOGY,PROGRAMMES,Campbell Scientific Ltd,473877,0,428453933
BEIS,Met Office,2022-11-29,11 SERVICES,PROGRAMMES,Campbell Scientific Ltd,473877,-28,428453933
BEIS,Met Office,2022-11-29,11 SERVICES,PROGRAMMES,Campbell Scientific Ltd,473877,1863,428453933
BEIS,Met Office,2022-11-29,11 SERVICES,PROGRAMMES,Campbell Scientific Ltd,473877,1404,428453933
BEIS,Met Office,2022-11-29,11 SERVICES,PROGRAMMES,Campbell Scientific Ltd,473877,191,428453933
BEIS,Met Office,2022-11-29,13 MISCELLANEOUS,CHIEF FINANCIAL OFFICER,CBRE MANAGED SERVICES LTD,473939,12049.38,853936883
BEIS,Met Office,2022-11-29,06 ACCOMMODATION,CHIEF FINANCIAL OFFICER,CBRE MANAGED SERVICES LTD,473982,1,853936883
BEIS,Met Office,2022-11-29,06 ACCOMMODATION,CHIEF FINANCIAL OFFICER,CBRE MANAGED SERVICES LTD,473982,149175.92,853936883
BEIS,Met Office,2022-11-29,INFORMATION TECHNOLOGY,TECHNOLOGY AND CIO,COMPUTACENTER (UK) LTD,473944,18924.74,490334648
BEIS,Met Office,2022-11-29,10 EQUIPMENT MAINTENANCE,TECHNOLOGY AND CIO,COMPUTACENTER (UK) LTD,474039,3539.13,490334648
BEIS,Met Office,2022-11-29,13 MISCELLANEOUS,CHIEF FINANCIAL OFFICER,EDEN SPRINGS UK LTD,474049,309.48,232160411
BEIS,Met Office,2022-11-29,13 MISCELLANEOUS,CHIEF FINANCIAL OFFICER,EDEN SPRINGS UK LTD,474049,1,232160411
BEIS,Met Office,2022-11-29,11 SERVICES,CHIEF FINANCIAL OFFICER,ENTERPRISE RENT A CAR UK LTD,474012,3476.99,215557314
BEIS,Met Office,2022-11-29,03 STAFF COSTS T&S,CHIEF FINANCIAL OFFICER,ENTERPRISE RENT A CAR UK LTD,474013,401.6,215557314
BEIS,Met Office,2022-11-29,08 SOFTWARE LICENCES,PROGRAMMES,Esri (Uk) Ltd,473999,7694.7,787430791
BEIS,Met Office,2022-11-29,06 ACCOMMODATION,CHIEF FINANCIAL OFFICER,GVAV LIMITED,474014,1760,770015070
BEIS,Met Office,2022-11-29,11 SERVICES,CHIEF FINANCIAL OFFICER,INFOGRID,474042,34054,293809562
BEIS,Met Office,2022-11-29,11 SERVICES,TECHNOLOGY AND CIO,MINISTRY OF TESTING LTD,473814,12000,123575619
BEIS,Met Office,2022-11-29,11 SERVICES,CHIEF FINANCIAL OFFICER,MITIE SECURITY LTD,473991,3117,416706654
BEIS,Met Office,2022-11-29,11 SERVICES,CHIEF FINANCIAL OFFICER,MITIE SECURITY LTD,473991,7273.5,416706654
BEIS,Met Office,2022-11-29,11 SERVICES,CHIEF FINANCIAL OFFICER,MITIE SECURITY LTD,473992,20780.59,416706654
BEIS,Met Office,2022-11-29,06 ACCOMMODATION,CHIEF FINANCIAL OFFICER,NESS ENGINEERING LTD,473998,27800,430188472
BEIS,Met Office,2022-11-29,13 MISCELLANEOUS,CHIEF FINANCIAL OFFICER,NORSCOTT VENDING SERVICES LTD,473527,-2.2,751402071
BEIS,Met Office,2022-11-29,13 MISCELLANEOUS,CHIEF FINANCIAL OFFICER,NORSCOTT VENDING SERVICES LTD,474007,5.7,751402071
BEIS,Met Office,2022-11-29,03 STAFF COSTS T&S,CHIEF FINANCIAL OFFICER,RAINBOW CITY TAXIS,474041,20.3,724295039
BEIS,Met Office,2022-11-29,06 ACCOMMODATION,CHIEF FINANCIAL OFFICER,South West Water Ltd,474050,65.3,236873674
BEIS,Met Office,2022-11-29,06 ACCOMMODATION,CHIEF FINANCIAL OFFICER,Stewart Morris Partnership Ltd,474044,950,687720886
BEIS,Met Office,2022-11-29,11 SERVICES,SCIENCE,University Of Exeter,471662,7500,142047795
BEIS,Met Office,2022-11-29,11 SERVICES,PROGRAMMES,University Of Exeter,473941,68639.69,142047795
BEIS,Met Office,2022-11-29,11 SERVICES,CHIEF FINANCIAL OFFICER,WEBEX COMMUNICATIONS UK LTD,474011,209.92,815974302
BEIS,Met Office,2022-11-30,11 SERVICES,TECHNOLOGY AND CIO,AMAZON WEB SERVICES INC.,10801,102757.39,N/A
BEIS,Met Office,2022-11-30,11 SERVICES,SERVICES,Campbell Scientific Ltd,474043,1572,428453933
BEIS,Met Office,2022-11-30,07 EQUIPMENT,TECHNOLOGY AND CIO,COMPUTACENTER (UK) LTD,474085,2692.98,490334648
BEIS,Met Office,2022-11-30,12 INTERNATIONAL,MARKETS,Deutscher Wetterdienst,24335,2352.34,-
BEIS,Met Office,2022-11-30,11 SERVICES,MARKETS,ECMWF,24349,1460.39,NOTVATREG
BEIS,Met Office,2022-11-30,11 SERVICES,MARKETS,ECMWF,24350,24268.28,NOTVATREG
BEIS,Met Office,2022-11-30,11 SERVICES,MARKETS,ECMWF,24351,204.24,NOTVATREG
BEIS,Met Office,2022-11-30,11 SERVICES,MARKETS,ECMWF,24352,605.64,NOTVATREG
BEIS,Met Office,2022-11-30,11 SERVICES,MARKETS,ECMWF,24353,440.98,NOTVATREG
BEIS,Met Office,2022-11-30,11 SERVICES,MARKETS,ECMWF,24354,35288.67,NOTVATREG
BEIS,Met Office,2022-11-30,11 SERVICES,MARKETS,ECMWF,24355,547.28,NOTVATREG
BEIS,Met Office,2022-11-30,11 SERVICES,MARKETS,ECMWF,24356,11985.83,NOTVATREG
BEIS,Met Office,2022-11-30,11 SERVICES,MARKETS,ECMWF,24357,1439.45,NOTVATREG
BEIS,Met Office,2022-11-30,11 SERVICES,MARKETS,ECMWF,24358,774.66,NOTVATREG
BEIS,Met Office,2022-11-30,11 SERVICES,MARKETS,ECMWF,24359,11935.22,NOTVATREG
BEIS,Met Office,2022-11-30,11 SERVICES,MARKETS,ECMWF,24360,6610.74,NOTVATREG
BEIS,Met Office,2022-11-30,11 SERVICES,MARKETS,ECMWF,24361,112.08,NOTVATREG
BEIS,Met Office,2022-11-30,11 SERVICES,MARKETS,ECMWF,24362,535.77,NOTVATREG
BEIS,Met Office,2022-11-30,11 SERVICES,MARKETS,ECMWF,24363,11985.82,NOTVATREG
BEIS,Met Office,2022-11-30,11 SERVICES,PROGRAMMES,FUNDACAO ARTHUR BERNARDES - FUNARBE,474008,20532.8,-
BEIS,Met Office,2022-11-30,08 SOFTWARE LICENCES,MARKETS,"IBL SOFTWARE ENGINEERING, SPOL S.R.O.",24330,8200.55,SK2020241883
BEIS,Met Office,2022-11-30,11 SERVICES,PROGRAMMES,"K F LEWIN CONSULTING, LLC",10839,11921.43,-
BEIS,Met Office,2022-11-30,11 SERVICES,PROGRAMMES,"K F LEWIN CONSULTING, LLC",10839,4075.63,-
BEIS,Met Office,2022-11-30,11 SERVICES,MARKETS,MAGPIE CREATIVE COMMUNICATIONS,473942,15000,117332539
BEIS,Met Office,2022-11-30,13 MISCELLANEOUS,TECHNOLOGY AND CIO,OGC (OPEN GEOSPATIAL CONSORTIUM) INC.,10832,10389.02,-
BEIS,Met Office,2022-11-30,11 SERVICES,PEOPLE,PLURALSIGHT,10856,6080.13,EU826020045
BEIS,Met Office,2022-11-30,11 SERVICES,PEOPLE,PLURALSIGHT,10860,5320.4,EU826020045
BEIS,Met Office,2022-11-30,08 SOFTWARE LICENCES,SERVICES,PRESERVICA LTD,474084,13848,182627102
BEIS,Met Office,2022-11-30,08 SOFTWARE LICENCES,TECHNOLOGY AND CIO,SAP (UK) LTD,473199,0.46,GB494703129
BEIS,Met Office,2022-11-30,08 SOFTWARE LICENCES,TECHNOLOGY AND CIO,SAP (UK) LTD,473199,188879.04,GB494703129
BEIS,Met Office,2022-11-30,11 SERVICES,PROGRAMMES,SPECIALIST COMPUTER CENTRES,473993,9500,313651680
BEIS,Met Office,2022-11-30,11 SERVICES,CHIEF FINANCIAL OFFICER,SWISSCOM (SCHWEIZ) AG,473565,97.69,-
BEIS,Met Office,2022-11-30,11 SERVICES,CHIEF FINANCIAL OFFICER,TELIA FINLAND OYJ,24369,190.77,FI14756079
BEIS,Met Office,2022-11-30,STOCK,SERVICES,VAISALA LTD,24322,0,336100011
BEIS,Met Office,2022-11-30,TRADE CREDITORS,SERVICES,VAISALA LTD,24322,4608.94,336100011
BEIS,Met Office,2022-11-30,STOCK,SERVICES,VAISALA LTD,24331,0,336100011
BEIS,Met Office,2022-11-30,STOCK,SERVICES,VAISALA LTD,24331,0,336100011
BEIS,Met Office,2022-11-30,TRADE CREDITORS,SERVICES,VAISALA LTD,24331,12915.77,336100011
BEIS,Met Office,2022-11-30,TRADE CREDITORS,SERVICES,VAISALA LTD,24331,12915.77,336100011
